Cogmind - Beta 16.1 @@@ ROGUE MODE // 2026.02.13 @ 19:25:06 Player: Dosh Result: Escaped! Performance ------------- Evolutions (9) 4500 Regions Visited (28) 5600 Robots Destroyed (429) 2145 Value Destroyed (27938) 27938 Prototype IDs (76) 1520 Alien Tech Used (0) 0 Bonus (21999) 21999 TOTAL SCORE: 63702 Bonus ------- High Alert Combat Kills 1582 Follower Combat Kills 9116 Hunted by Unchained 500 Entered Garrisons 1800 Used RIF Installer 6000 Aligned with FarCom 300 Win 3000 Friendly Fire -299 Cogmind --------- Core Integrity 1409/1600 Matter 177/300 Energy 85/100 System Corruption 10% Temperature Cool (14) Movement Treading (166) Location To Epsilon Eridani Parts ------- > --- POWER (4) -------- (None) > --- PROPULSION (7) --- Enhanced Armored Medium Treads Enhanced Armored Medium Treads Improved Heavy Siege Treads > --- UTILITY (12) ----- Experimental Heat Sink Huge Storage Unit Experimental Targeting Computer Quantum Capacitor Thermal Barrier Relay Coupler [NC] (22) Relay Coupler [Hunter] (4) Relay Coupler [Proto] (2) > --- WEAPON (2) ------- Hellfire Missile Launcher > --- INVENTORY (25) --- Light Quantum Reactor Light Quantum Reactor Light Quantum Reactor Enhanced Armored Medium Treads Enhanced Armored Medium Treads Enhanced Armored Medium Treads Enhanced Armored Medium Treads Improved Cryofiber Web Experimental Reaction Control System Improved Core Shielding Improved Utility Shielding Advanced Hardlight Generator Advanced Remote Force Field Relay Coupler [Swarmer] (24) Relay Coupler [Specialist] (20) Warp Gun Compact HERF Cannon Advanced Remote Datajack Advanced Remote Datajack Peak State ------------ > --- POWER ------------ Quantum Reactor Quantum Reactor Light Quantum Reactor Reinforced Quantum Reactor > --- PROPULSION ------- Enhanced Armored Medium Treads Enhanced Armored Medium Treads Enhanced Armored Medium Treads Enhanced Armored Medium Treads Enhanced Armored Medium Treads Armored Heavy Treads > --- UTILITY ---------- Experimental Heat Sink Huge Storage Unit Experimental Targeting Computer Quantum Capacitor Thermal Barrier Advanced Force Field Relay Coupler [NC] Relay Coupler [Hunter] Relay Coupler [Behemoth] Relay Coupler [Proto] Relay Coupler [Proto] > --- WEAPON ----------- Compact HERF Cannon Advanced Remote Datajack > --- INVENTORY -------- Light Quantum Reactor Light Quantum Reactor Light Quantum Reactor Enhanced Armored Medium Treads Enhanced Armored Medium Treads Enhanced Armored Medium Treads Enhanced Armored Medium Treads Improved Heavy Siege Treads Improved Cryofiber Web Experimental Reaction Control System Improved Core Shielding Improved Utility Shielding Advanced Hardlight Generator Advanced Remote Force Field Relay Coupler [Swarmer] Relay Coupler [Specialist] Warp Gun Enhanced Nova Cannon Hellfire Missile Launcher Advanced Remote Datajack [Rating: 199] Favorites ----------- Power Light Angular Momentum Engine Engine Light Angular Momentum Engine Power Core Light Fission Core Reactor Reinforced Quantum Reactor Propulsion Light Treads Treads Light Treads Leg Heavy Shield Leg Utility Huge Storage Unit Device Advanced Cooling System Storage Huge Storage Unit Processor Experimental Targeting Computer Hackware Relay Coupler [Sentry] Protection Medium Armor Plating Weapon Phase Cannon Energy Gun Warp Gun Energy Cannon Phase Cannon Ballistic Gun Minigun Ballistic Cannon Light Cannon Launcher Hellfire Missile Launcher Special Weapon Advanced Remote Datajack Slashing Weapon Longsword +1 Special Melee Weapon Datajack Build | -11 -10 -10 -9 -9 -9 -8 -8 -8 -8 -8 -7 -7 -6 -6 -5 -5 -5 -5 -5 -5 -4 -4 -3 -3 -3 -2 -1 -1 ------- Run | Yrd Mat Min Mat Min Exi Min Mat Gar Mat Gar Fac Gar Fac Gar Fac Gar Fac Gar Fac Gar Fac Gar Res Tes Gar Res Acc Com Slots Evolved 18 | . . . 2 . . . 2 . . . 2 . 2 . 2 . . . . . 2 . 2 . . 2 2 . Power 3 | . . . . . . . . . . . . . 1 . . . . . . . . . 1 . . . 1 . Propulsion 5 | . . . 1 . . . 1 . . . . . . . 1 . . . . . 1 . . . . 1 . . Utility 10 | . . . 1 . . . 1 . . . 2 . 1 . 1 . . . . . 1 . 1 . . 1 1 . Weapon . | . . . . . . . . . . . . . . . . . . . . . . . . . . . . . Parts Attached 275 | 6 5 1 29 1 1 . 4 6 10 8 8 21 4 15 7 20 6 11 2 21 3 4 12 20 7 22 13 8 Power 39 | 1 1 . 2 . . . . . 2 . . 2 1 2 1 2 1 2 . 4 . . 5 3 1 3 4 2 Engine 13 | 1 1 . 2 . . . . . 2 . . 2 1 2 . . . 1 . 1 . . . . . . . . Core 2 | . . . . . . . . . . . . . . . . 1 1 . . . . . . . . . . . Reactor 24 | . . . . . . . . . . . . . . . 1 1 . 1 . 3 . . 5 3 1 3 4 2 Propulsion 62 | 2 1 . 12 . . . 1 1 4 4 1 2 . . 1 5 . . . 10 1 . 1 6 . 9 . 1 Treads 49 | 2 1 . 12 . . . 1 1 4 4 1 2 . . 1 2 . . . 6 1 . 1 2 . 7 . 1 Leg 13 | . . . . . . . . . . . . . . . . 3 . . . 4 . . . 4 . 2 . . Wheel . | . . . . . . . . . . . . . . . . . . . . . . . . . . . . . Hover . | . . . . . . . . . . . . . . . . . . . . . . . . . . . . . Flight . | . . . . . . . . . . . . . . . . . . . . . . . . . . . . . Utility 129 | 1 2 1 8 . 1 . 1 2 4 2 7 16 3 13 2 8 4 8 1 6 1 4 3 7 5 7 8 4 Device 38 | . . 1 3 . . . . . 2 . 2 4 1 3 . 2 1 1 1 1 . 2 1 3 2 4 4 . Storage 4 | 1 1 . 1 . 1 . . . . . . . . . . . . . . . . . . . . . . . Processor 4 | . . . . . . . 1 . . . 1 . . . . . . . . . . . . 1 1 . . . Hackware 60 | . . . . . . . . . . 2 4 8 2 9 1 4 3 7 . 3 . 2 2 2 2 3 3 3 Protection 23 | . 1 . 4 . . . . 2 2 . . 4 . 1 1 2 . . . 2 1 . . 1 . . 1 1 Artifact . | . . . . . . . . . . . . . . . . . . . . . . . . . . . . . Weapon 45 | 2 1 . 7 1 . . 2 3 . 2 . 1 . . 3 5 1 1 1 1 1 . 3 4 1 3 1 1 Energy Gun 2 | . . . . . . . . . . . . . . . . . . . . . . . . 2 . . . . Energy Cannon 17 | . . . . . . . . 2 . 1 . 1 . . 3 2 1 1 . 1 1 . . 1 . 2 . 1 Ballistic Gun 7 | 2 . . 4 . . . . 1 . . . . . . . . . . . . . . . . . . . . Ballistic Cannon 2 | . . . 2 . . . . . . . . . . . . . . . . . . . . . . . . . Launcher 4 | . 1 . . 1 . . . . . . . . . . . 1 . . . . . . 1 . . . . . Special Weapon 10 | . . . . . . . . . . 1 . . . . . 2 . . 1 . . . 2 1 1 1 1 . Impact Weapon . | . . . . . . . . . . . . . . . . . . . . . . . . . . . . . Slashing Weapon 2 | . . . 1 . . . 1 . . . . . . . . . . . . . . . . . . . . . Piercing Weapon . | . . . . . . . . . . . . . . . . . . . . . . . . . . . . . Special Melee Weapon 1 | . . . . . . . 1 . . . . . . . . . . . . . . . . . . . . . Unidentified Prototypes 14 | . . . . . . . . . . . . 1 . . 1 . . . . . . . 1 9 . 1 . 1 Corrupted Parts 1 | . . . . . . . . . . . . . . . . . . . . . . . . . . 1 . . System Corruption 10 | . . . . . . . . . . . . . . . . . . . . . . . . . . 10 . . Parts Lost 55 | . 3 . 1 . . . . 4 1 . . 4 . . 2 3 . . . 4 . 1 . 5 1 11 3 12 Power 13 | . 1 . . . . . . . . . . 1 . . . 1 . . . 1 . . . 1 1 1 2 4 Propulsion 14 | . 1 . 1 . . . . 2 . . . . . . . 1 . . . 2 . . . 1 . 2 . 4 Utility 23 | . 1 . . . . . . 2 1 . . 2 . . 2 1 . . . 1 . 1 . 3 . 5 1 3 Weapon 5 | . . . . . . . . . . . . 1 . . . . . . . . . . . . . 3 . 1 Highest Loss Streak 11 | . 1 . 1 . . . . 4 1 . . 2 . . 2 2 . . . 3 . 1 . 2 1 3 2 11 To Critical Strikes 2 | . . . . . . . . . . . . . . . . . . . . . . . . . . 2 . . Average Backups 21 | . 8 10 15 20 19 20 20 20 21 21 22 21 19 21 22 23 24 24 24 22 21 22 22 23 23 21 20 21 Power 1 | . . . 1 1 1 1 1 2 2 2 2 1 1 1 1 . . . 1 . 1 1 . 1 1 . . 2 Propulsion 3 | . 3 4 3 8 7 6 6 4 4 5 4 4 2 2 1 3 4 5 5 2 1 1 1 1 4 3 4 4 Utility 11 | . . 1 5 6 6 7 7 8 9 9 10 11 12 14 14 15 15 14 13 13 14 14 14 13 10 11 11 9 Weapon 4 | . 2 4 3 4 4 4 4 3 3 4 4 4 3 3 4 4 3 4 3 4 5 5 5 6 6 4 3 3 Tool/Special . | . . . . . . . . . . . . . . . . . . . . . . . . . . . . . Unused Backups 61 | . . . 10 . . . 1 2 4 2 . 8 . 1 . 1 1 3 . 8 . 2 . 3 5 4 . 6 Power 2 | . . . 1 . . . . . . . . . . . . . . . . 1 . . . . . . . . Propulsion 17 | . . . 1 . . . . . 1 . . 3 . . . . 1 1 . 2 . . . 1 1 3 . 3 Utility 32 | . . . 1 . . . 1 1 3 2 . 5 . 1 . 1 . 1 . 4 . 2 . 2 4 1 . 3 Weapon 9 | . . . 7 . . . . 1 . . . . . . . . . . . 1 . . . . . . . . Tool/Special 1 | . . . . . . . . . . . . . . . . . . 1 . . . . . . . . . . Average Slot Usage (%) 87 | . 92 96 99 100 100 100 99 99 95 90 91 79 79 79 73 79 81 81 79 87 83 83 79 79 79 83 91 90 Engine 5 | . 13 14 11 11 11 11 9 9 8 9 7 7 12 13 5 1 . . 5 1 . . . . . . . . Reactor 4 | . . . . . . . . . . . . . . . 4 3 5 7 5 9 10 10 13 14 14 12 14 15 Treads 19 | . 27 28 32 33 33 33 36 35 36 36 30 18 13 13 11 6 . . . 11 14 15 14 11 . 5 24 23 Leg 3 | . . . . . . . . . . . . . . . . 9 17 17 16 6 . . . 2 14 13 . . Device 10 | . . 10 6 . . . 8 4 8 6 5 5 12 12 12 8 12 14 12 16 15 15 19 18 18 16 21 15 Storage 6 | . 14 14 11 11 11 11 9 9 9 9 7 7 6 6 5 5 5 5 5 5 5 5 4 4 4 4 4 4 Processor 1 | . . . . . . . . 9 5 . 4 . . . . . . . . . . . . . 3 4 4 4 Hackware 9 | . . . . . . . . . . 2 11 16 13 13 14 15 15 12 15 16 15 15 14 12 14 16 13 18 Protection 8 | . 7 . 14 22 22 22 17 13 9 9 6 6 6 6 5 7 5 5 5 4 9 9 2 5 . 1 . 1 Energy Cannon 6 | . . . . . . . . 1 17 17 13 10 6 8 7 6 5 6 5 8 5 5 3 3 3 4 3 3 Ballistic Gun 3 | . 27 14 15 21 22 22 16 12 . . . . . . . . . . . . . . . . . . . . Special Weapon 2 | . . . . . . . . . . . 1 3 5 4 1 3 4 3 3 2 5 5 3 4 4 3 2 3 Peak Build Rating 199 | 6 8 10 19 19 22 23 31 39 44 44 46 80 89 91 100 120 121 124 121 124 130 135 155 160 161 174 191 199 Average Rating 86 | 4 6 9 16 18 20 22 26 31 42 40 45 66 87 88 93 105 117 119 114 113 129 131 152 157 160 168 184 186 On Entrance 79 | . 6 7 10 19 19 22 23 29 36 44 38 44 75 88 89 77 120 121 116 114 120 129 133 153 156 160 161 186 Avg Prop Armor Cover (%) 3 | . . . . . . . . . . . . . . . . . . . . 3 . . . . . . . . Naked Turns . | . . . . . . . . . . . . . . . . . . . . . . . . . . . . . Heaviest Build 214 | 11 29 30 67 68 107 107 109 130 130 126 126 127 132 151 146 165 171 167 148 173 175 175 209 182 154 180 205 214 Greatest Support 250 | 40 40 40 60 60 60 60 83 83 83 83 80 150 150 150 150 180 150 150 150 185 230 230 230 230 150 235 235 250 Greatest Overweight (x) 4 | . . . 1 1 1 1 1 1 1 1 1 1 . 1 . 1 1 1 1 1 . . . 1 1 4 . 1 Average Overweight (x) . | . . . . 1 1 1 1 1 1 1 1 . . . . . 1 . . . . . . . . . . . Largest Inventory Capacity 25 | 8 15 15 20 20 25 25 25 25 25 25 25 25 25 25 25 25 25 25 25 25 25 25 25 25 25 25 25 25 Average Capacity 23 | 7 13 15 16 20 22 25 25 25 25 25 25 25 25 25 25 25 25 25 25 25 25 25 25 25 25 25 25 25 Most Carried 25 | 2 13 11 20 20 22 24 25 25 25 25 25 25 23 25 25 25 25 25 25 25 25 25 25 25 25 25 25 25 Average Carried 22 | 1 8 10 15 20 20 23 23 23 24 24 24 23 22 24 24 23 24 24 24 23 22 23 23 23 24 22 21 22 Final Capacity 25 | 8 15 15 20 20 25 25 25 25 25 25 25 25 25 25 25 25 25 25 25 25 25 25 25 25 25 25 25 25 Final Carried 25 | 2 11 11 20 20 22 24 24 24 25 25 24 24 22 25 25 25 23 25 24 25 22 25 23 25 25 16 22 19 Class Distribution -------------------- 50% | Botlord-Mutant 21% | Bothacker-Mutant 21% | Mutant 6% | Scavenger-Mutant Dominant Class ---------------- Mutant | -10/Materials Mutant | -10/Mines Mutant | -9/Materials Mutant | -9/Mines Mutant | -9/Exiles Mutant | -8/Mines Mutant | -8/Materials Mutant | -8/Garrison Scavenger-Mutant | -8/Materials Bothacker-Mutant | -8/Garrison Bothacker-Mutant | -7/Factory Bothacker-Mutant | -7/Garrison Bothacker-Mutant | -6/Factory Botlord-Mutant | -6/Garrison Botlord-Mutant | -5/Factory Botlord-Mutant | -5/Garrison Botlord-Mutant | -5/Factory Botlord-Mutant | -5/Garrison Botlord-Mutant | -5/Factory Botlord-Mutant | -5/Garrison Botlord-Mutant | -4/Factory Botlord-Mutant | -4/Garrison Botlord-Mutant | -3/Research Botlord-Mutant | -3/Testing Botlord-Mutant | -3/Garrison Botlord-Mutant | -2/Research Botlord-Mutant | -1/Access Botlord-Mutant | -1/Command Resources | -11 -10 -10 -9 -9 -9 -8 -8 -8 -8 -8 -7 -7 -6 -6 -5 -5 -5 -5 -5 -5 -4 -4 -3 -3 -3 -2 -1 -1 ----------- Run | Yrd Mat Min Mat Min Exi Min Mat Gar Mat Gar Fac Gar Fac Gar Fac Gar Fac Gar Fac Gar Fac Gar Res Tes Gar Res Acc Com Matter Collected 11654 | 168 252 2 1570 83 . 6 161 622 211 205 240 751 196 477 150 658 294 729 380 874 77 483 406 533 576 826 500 224 Remotely . | . . . . . . . . . . . . . . . . . . . . . . . . . . . . . Salvage Created 21944 | . 391 16 1828 63 . 81 216 940 1137 483 197 1371 . 786 833 795 90 632 509 1744 85 419 680 1759 1007 1803 1838 2241 Parts 1021 | . 28 6 131 8 . . 9 40 60 29 16 50 . 25 33 37 3 21 30 69 2 24 28 100 33 82 79 78 Haulers Intercepted 12 | . 1 . 6 . . . . . 3 . . . . . 1 . . . . . . . . . . 1 . . Recyclers Shooed 3 | . . . . . . . . . . . . . . . . . 1 . . . . . 1 . . . . 1 Parts Field Recycled . | . . . . . . . . . . . . . . . . . . . . . . . . . . . . . Retrieved Matter . | . . . . . . . . . . . . . . . . . . . . . . . . . . . . . Parts Self-Destructed . | . . . . . . . . . . . . . . . . . . . . . . . . . . . . . Prevented . | . . . . . . . . . . . . . . . . . . . . . . . . . . . . . Parts Restored . | . . . . . . . . . . . . . . . . . . . . . . . . . . . . . Kills | -11 -10 -10 -9 -9 -9 -8 -8 -8 -8 -8 -7 -7 -6 -6 -5 -5 -5 -5 -5 -5 -4 -4 -3 -3 -3 -2 -1 -1 ------- Run | Yrd Mat Min Mat Min Exi Min Mat Gar Mat Gar Fac Gar Fac Gar Fac Gar Fac Gar Fac Gar Fac Gar Res Tes Gar Res Acc Com Combat Hostiles Destroyed 354 | . 7 3 33 4 . . 4 19 19 15 6 15 . 15 13 21 2 12 6 17 1 7 9 25 17 30 31 23 Melee 3 | . . . . . . . . . . . . 1 . . . . . . . . . . 1 1 . . . . Guns 58 | . 6 . 24 2 . . 3 17 . . . . . . . . . . . . . . . . 2 3 1 . Cannons 180 | . . . 9 . . . . 1 14 11 3 13 . 14 11 7 2 7 6 12 1 7 4 15 3 16 8 16 AOE 58 | . 1 3 . 2 . . . 1 4 2 3 . . . 1 12 . 3 . 1 . . . . 7 6 11 1 Classes Destroyed 22 | . 5 1 2 1 . . 1 2 . . . 4 . 1 . . . . 2 . . . . . 1 2 . . Worker 21 | . 1 . 5 . . . . . 1 . . . . . . . . . 1 . . . 2 1 . 8 . 2 Builder 6 | . 2 . 1 . . . . . . . . . . . . . . . 1 . . . . 1 . 1 . . Tunneler 1 | . . . . 1 . . . . . . . . . . . . . . . . . . . . . . . . Hauler 12 | . 1 . 6 . . . . . 3 . . . . . 1 . . . . . . . . . . 1 . . Recycler 5 | . . . 2 . . 1 . . 1 . . . . . . . . . . . . . . . . . . 1 Mechanic 1 | . . . . . . . . . . . . . . . . . . . 1 . . . . . . . . . Operator 2 | . . . . . . . . . . . . . . . . . . . 1 . . . . . . . . 1 Drone 8 | . . . . . . . . . . . . . . . . . . . . . . . . . . 8 . . Watcher 18 | . 1 . 4 . . . . 1 5 . 2 . . 1 . . . . . 2 . . . . . 1 1 . Swarmer 68 | . . 3 6 4 . . . . 5 6 4 . . 3 . 13 . 4 . . . . . . 7 2 11 . Cutter 4 | . . . . . . . . . . . . 4 . . . . . . . . . . . . . . . . Saboteur 1 | . . . . . . . . . . . . . . . . . . . . . . . . . . 1 . . Grunt 111 | . 7 . 18 . . . 3 13 7 2 . 2 . 6 3 4 . 1 1 5 . 1 2 1 5 6 11 13 Brawler 9 | . . . . . . . . 2 . . . 1 . . 1 . . 1 . 1 . 1 . . 1 . . 1 Duelist 6 | . . . . . . . . . . . . 1 . . . . 1 1 1 1 . . . . . 1 . . Sentry 21 | . . . 9 . . . . 1 7 2 . . . 1 . . . . . . . . . . . . 1 . Demolisher 1 | . . . . . . . . . . . . 1 . . . . . . . . . . . . . . . . Specialist 16 | . . . . . . . . . . . . 4 . . 3 1 . 1 1 . . . 1 3 2 . . . Hunter 38 | . . . . . . . 1 . . 1 . 1 . 2 . 2 . 3 1 . 1 1 2 9 2 4 2 6 Programmer 71 | . . . . . . . . 3 . 4 2 2 . 1 6 . 1 1 5 10 . 4 3 11 1 8 5 4 Behemoth 7 | . . . . . . . . . . . . . . 2 . 1 . 1 . 1 . . 1 . . . 1 . Executioner 1 | . . . . . . . . . . . . . . . . . . . . . . . . . 1 . . . Protovariant D 1 | . . . . . . . . . . . . . . . . . . . . . . . . 1 . . . . Best Kill Streak 11 | . 4 7 7 2 . 1 3 4 5 4 4 5 . 3 3 9 1 3 4 6 1 2 4 5 5 11 9 7 Combat Bots Only 11 | . 2 3 5 2 . . 3 4 5 4 4 5 . 3 3 9 1 3 3 6 1 2 4 5 5 5 11 6 Max Kills in Single Turn 6 | . 2 3 2 2 . 1 1 1 3 2 2 2 . 1 1 5 1 3 4 1 1 1 1 1 5 5 6 3 Gunslinging . | . . . . . . . . . . . . . . . . . . . . . . . . . . . . . Exploded 6 | . 1 3 . 2 . . . 1 3 2 2 . . . 1 5 . 3 . 1 . . . . 5 3 6 1 Melee 1 | . . . . . . . . . . . . 1 . . . . . . . . . . 1 1 . . . . Uniques/NPCs Destroyed . | . . . . . . . . . . . . . . . . . . . . . . . . . . . . . Combat | -11 -10 -10 -9 -9 -9 -8 -8 -8 -8 -8 -7 -7 -6 -6 -5 -5 -5 -5 -5 -5 -4 -4 -3 -3 -3 -2 -1 -1 -------- Run | Yrd Mat Min Mat Min Exi Min Mat Gar Mat Gar Fac Gar Fac Gar Fac Gar Fac Gar Fac Gar Fac Gar Res Tes Gar Res Acc Com Hostile Shots Fired 2751 | . 69 . 128 15 . . 18 82 50 79 36 195 2 195 57 154 18 120 61 191 17 68 91 217 161 292 173 262 Missed 805 | . 15 . 42 3 . . 3 22 16 26 14 45 1 52 18 33 5 28 22 51 10 27 41 57 72 78 46 78 Deflected 32 | . . . . . . . . . . . . . . . . . . 2 . 30 . . . . . . . . Hits 1946 | . 54 . 86 12 . . 15 60 34 53 22 150 1 143 39 121 13 92 39 140 7 41 50 160 89 214 127 184 Melee 27 | . . . . . . . . . . 1 . 9 . . . . . 3 1 6 . 5 . . . 2 . . Projectile 1919 | . 54 . 86 12 . . 15 60 34 52 22 141 1 143 39 121 13 89 38 134 7 36 50 160 89 212 127 184 AOE 25 | . . . . . . . . . . 1 . 7 . . 3 . . . 2 1 . . 2 5 . 4 . . Critical Strikes 112 | . 5 . 1 . . . 1 3 . 5 . 5 . 4 1 1 1 2 3 6 1 3 1 8 6 44 6 5 Actively Blocked 4 | . 2 . . . . . . . . . . . . . . . . . . . . 2 . . . . . . Part Disruptions 7 | . . . . . . . . 1 . 1 . . . . . . 1 . 1 . . 1 . . 1 1 . . Damage Taken 26100 | . 737 36 916 105 . . 183 657 398 737 287 2014 72 1180 1010 1216 157 1080 434 1700 81 427 442 2416 956 4308 1290 3261 Core 1668 | . 189 . 81 9 . . 12 59 60 30 . 125 . 37 213 13 . 17 19 60 . 25 24 186 108 210 56 135 Absorbed by Shields 9631 | . . . 166 . . . 68 259 . . . 18 . 487 145 688 162 759 383 953 87 449 386 1065 787 1091 1059 619 Reduced by Siege Mode 422 | . . . . . . . . . . . . 29 . 77 58 28 . . . . . . 10 172 . . 43 5 Redirected to Shielding 174 | . 54 . . . . . . . . . . . . . . . . . . . . 32 . 62 . . 10 16 Ignored by Resistances 1032 | . . . . . . . . 6 52 . . . . 162 . 390 . . . . . . . . . . 224 198 Regen/Repaired (Parts) 1893 | . . . 111 . . . . . 46 26 290 255 . . . . 167 80 766 . 52 . . . . 100 . . Core Remaining (%) 78 | 100 . 24 . . . 77 . . . 70 . 82 . 95 . . . . . 67 . 97 . . 75 85 . 88 Volleys Fired 1762 | . 50 1 141 8 . . 14 55 59 44 31 141 9 83 41 56 24 78 44 110 11 65 62 127 119 189 114 86 Largest 2 | . 2 2 2 2 . . 2 2 2 2 2 2 1 2 2 2 2 2 2 2 1 1 1 1 1 2 1 1 Hottest 218 | . 50 50 60 50 . . 50 170 170 170 170 170 85 170 170 195 210 195 148 218 94 120 120 120 120 214 120 120 Shots Fired 2445 | . 100 2 282 15 . . 28 111 112 74 45 211 9 127 73 89 32 114 62 170 11 65 62 129 121 201 114 86 Gun 532 | . 93 1 210 14 . . 28 106 . . . . . . . . . . . . . . . . 32 40 8 . Cannon 1509 | . . . 72 . . . . 2 109 69 31 168 1 99 68 71 21 79 41 133 7 31 42 110 65 125 94 71 Launcher 35 | . 7 1 . 1 . . . 3 3 2 2 . . . . 4 . 1 . . . . . . 2 5 2 2 Special 369 | . . . . . . . . . . 3 12 43 8 28 5 14 11 34 21 37 4 34 20 19 22 31 10 13 Kinetic 524 | . 93 1 282 14 . . 28 106 . . . . . . . . . . . . . . . . . . . . Thermal 1265 | . . . . . . . . 2 109 69 31 168 1 99 68 71 21 79 41 133 . 29 26 53 64 129 58 14 Explosive 35 | . 7 1 . 1 . . . 3 3 2 2 . . . . 4 . 1 . . . . . . 2 5 2 2 Electromagnetic 252 | . . . . . . . . . . . . . . . . . . . . . 7 2 16 57 33 36 44 57 Robot Hit Streak 38 | . 10 1 13 3 . . 5 14 7 11 9 36 6 38 11 10 12 12 13 26 7 26 11 20 15 32 13 17 Robot Miss Streak 6 | . 5 1 6 2 . . 2 2 3 3 2 3 1 2 2 5 3 3 5 3 2 2 2 4 3 5 2 3 Penetration Max . | . . . . . . . . . . . . . . . . . . . . . . . . . . . . . Secondary Targets 3 | . . . 1 . . . . 2 . . . . . . . . . . . . . . . . . . . . Max Gunslinging Chain 1 | . . . 1 . . . . 1 . . . . . . . . . . . . . . . . . . . . Capacitor 537 | . . . . . . . . . . . . . . . . . . . . . . . 42 110 97 128 89 71 Shots Hit Robots 1555 | . 61 1 162 8 . . 18 86 65 31 25 137 5 93 52 56 21 75 36 116 9 48 41 84 69 117 69 70 Core Hits 560 | . 27 2 68 4 . . 7 41 31 16 9 33 . 25 19 28 3 17 20 32 2 7 7 25 23 51 30 33 Critical Kills 25 | . . . 1 . . . . . 1 2 . 2 . 1 1 2 . 3 . 5 . . 1 1 1 . 4 . Critical Parts Destroyed 6 | . 1 . . . . . . 1 . . . . . . . . . . . . . . . . 1 3 . . Critical Strikes 34 | . 1 . 2 . . . . 1 1 2 . 2 . 1 1 2 . 3 . 5 . . 2 1 2 3 4 1 Meltdown 22 | . . . . . . . . . 1 2 . 2 . 1 1 2 . 3 . 5 . . 1 1 . . 3 . Destroy 9 | . 1 . 1 . . . . 1 . . . . . . . . . . . . . . . . 2 3 1 . Blast 1 | . . . 1 . . . . . . . . . . . . . . . . . . . . . . . . . Corrupt 2 | . . . . . . . . . . . . . . . . . . . . . . . 1 . . . . 1 Melee Attacks 18 | . . . 1 . . . 5 12 . . . . . . . . . . . . . . . . . . . . Impact . | . . . . . . . . . . . . . . . . . . . . . . . . . . . . . Slashing 16 | . . . 1 . . . 3 12 . . . . . . . . . . . . . . . . . . . . Piercing . | . . . . . . . . . . . . . . . . . . . . . . . . . . . . . Sneak Attacks 2 | . . . . . . . 2 . . . . . . . . . . . . . . . . . . . . . Combat Hostiles . | . . . . . . . . . . . . . . . . . . . . . . . . . . . . . Follow-up Attacks . | . . . . . . . . . . . . . . . . . . . . . . . . . . . . . Damage Inflicted 51733 | . 880 119 2773 215 . 65 283 1845 2398 1133 632 3147 29 2268 1956 2838 553 1919 1742 3634 217 926 1227 3346 3338 6527 3859 3864 Guns 6192 | . 627 . 2021 114 . . 283 1514 . . . . . . . . . . . . . . . . 475 950 208 . Cannons 35644 | . . . 707 . . . . 34 2037 949 432 3123 . 2268 1749 1536 553 1583 972 3634 217 907 1082 3195 1965 3418 2558 2725 Explosions 8889 | . 251 119 . 94 . . . 229 318 179 200 . . . 207 1302 . 336 764 . . . . 80 872 1797 1089 1052 Melee 52 | . . . . . . . . 52 . . . . . . . . . . . . . . . . . . . . Ramming 956 | . 2 . 45 7 . 65 . 16 43 5 . 24 29 . . . . . 6 . . 19 145 71 26 362 4 87 Kinetic 5266 | . 627 . 2728 114 . . 283 1514 . . . . . . . . . . . . . . . . . . . . Thermal 29897 | . . . . . . . . 34 2037 949 432 3123 . 2268 1956 1536 553 1583 972 3634 . 864 588 1615 1495 3284 1409 1565 Explosive 7703 | . 251 119 . 94 . . . 229 318 179 200 . . . . 1302 . 336 764 . . . . . 872 1797 1089 153 Electromagnetic 7859 | . . . . . . . . . . . . . . . . . . . . . 217 43 494 1660 945 1084 1357 2059 Impact . | . . . . . . . . . . . . . . . . . . . . . . . . . . . . . Slashing 52 | . . . . . . . . 52 . . . . . . . . . . . . . . . . . . . . Piercing . | . . . . . . . . . . . . . . . . . . . . . . . . . . . . . Highest Corruption 22 | . . . . . . . . 2 2 4 1 2 2 4 8 8 10 11 13 22 . 3 . 8 13 18 4 10 Average Corruption 6 | . . . . . . . . 1 2 3 1 1 2 3 7 8 8 10 11 21 . 2 . 5 8 2 2 5 Corruption Purged 4 | . . . . . . . . . . . . . . 4 . . . . . . . . . . . . . . Corruption Blocked . | . . . . . . . . . . . . . . . . . . . . . . . . . . . . . Effects 607 | . . . . . . . . 9 39 38 2 19 3 16 6 60 41 76 63 93 . 15 . 37 39 14 16 21 Message Errors 161 | . . . . . . . . 2 10 11 . 1 3 3 2 20 11 21 18 20 . 4 . 13 7 4 4 7 Matter Fused 136 | . . . . . . . . 6 7 9 1 8 . 3 3 12 7 20 11 21 . 4 . 5 5 2 4 8 Heat Flow Errors 78 | . . . . . . . . . 5 1 . 4 . 3 1 8 6 11 6 8 . 4 . 6 8 3 3 1 Energy Discharges 69 | . . . . . . . . . 5 7 . 3 . 4 . 5 6 6 7 8 . 3 . 4 7 1 2 1 Parts Rejected 4 | . . . . . . . . . 1 . . . . . . . . . 1 2 . . . . . . . . Parts Fused 8 | . . . . . . . . . . . . . . . . 1 . 2 2 3 . . . . . . . . Data Loss (minor) 55 | . . . . . . . . . 6 4 1 1 . 2 . 5 9 9 3 8 . . . 3 3 . . 1 Data Loss (major) 31 | . . . . . . . . . 1 4 . 1 . 1 . 4 1 3 2 7 . . . 2 2 . 3 . Misfires 27 | . . . . . . . . 1 3 2 . . . . . 2 1 1 5 2 . . . 3 3 3 . 1 Alerts 15 | . . . . . . . . . 1 . . 1 . . . 2 . 2 2 3 . . . . 3 1 . . Misdirections 4 | . . . . . . . . . . . . . . . . . . . 2 1 . . . . . . . 1 Weapon Failures 19 | . . . . . . . . . . . . . . . . 1 . 1 4 10 . . . 1 1 . . 1 Overload Shots 7 | . . . . . . . . . . . . . . . . 1 . 1 2 3 . . . . . . . . Overflow Damage 1988 | . . 16 4 . . 6 . . 101 98 69 82 . 27 163 57 96 5 111 170 . 47 57 277 39 380 23 160 Projectiles 1205 | . . . 4 . . . . . 101 75 69 82 . 27 49 . 96 5 19 170 . 47 57 239 4 108 . 53 Explosions 620 | . . 16 . . . . . . . 23 . . . . 114 57 . . 92 . . . . . 35 182 23 78 Melee 163 | . . . . . . 6 . . . . . . . . . . . . . . . . . 38 . 90 . 29 Knockbacks 10 | . . . 5 . . . . . 1 . . . . . . . . . . . . . 2 . . 2 . . Impact 5 | . . . . . . . . . 1 . . . . . . . . . . . . . 2 . . 2 . . Kinetic 5 | . . . 5 . . . . . . . . . . . . . . . . . . . . . . . . . Secondary . | . . . . . . . . . . . . . . . . . . . . . . . . . . . . . Self-Inflicted Damage 505 | . . 36 . . . . . . . . . . . . 178 . . . 51 . . . . 101 . 67 . 72 Shots 7 | . . 1 . . . . . . . . . . . . 2 . . . 1 . . . . 1 . 1 . 1 Rammed 39 | . 1 . 6 1 . 3 . 2 4 1 . . 1 . . . . . . . . 1 11 3 . 1 . 4 Targets Rammed 61 | . 1 . 8 2 . 3 . 2 4 1 . 1 1 . . . 1 . 2 . . 1 14 4 2 9 1 4 Kicked 12 | . . . . . . . . . . . . . . . . . 1 . 2 . . . . . 2 7 . . Crushed 10 | . . . 2 1 . . . . . . . 1 . . . . . . . . . . 3 1 . 1 1 . Highest Temperature 450 | . 67 10 235 58 . . 99 117 352 355 401 429 . 328 252 338 252 253 350 310 . 273 332 348 330 328 450 379 Average Temperature 80 | . 16 7 39 27 . . 46 16 90 94 87 101 . 99 45 60 87 74 130 45 . 61 108 87 79 148 175 126 Received Heat Transfer 3683 | . 465 . 367 . . . 91 261 144 9 36 553 . 268 . 222 26 143 32 194 4 54 8 37 51 618 50 50 Effects 27 | . . . 2 . . . . . 2 1 1 7 . 2 . 1 . . 4 . . . . 1 . 1 3 2 Shutdowns 4 | . . . . . . . . . . . 1 . . 1 . . . . 1 . . . . 1 . . . . Energy Bleed 4 | . . . 1 . . . . . . . . 1 . 1 . . . . . . . . . . . 1 . . Interference 12 | . . . 1 . . . . . 2 1 . 3 . . . . . . 3 . . . . . . . . 2 Matter Decay 2 | . . . . . . . . . . . . 2 . . . . . . . . . . . . . . . . Short Circuit 1 | . . . . . . . . . . . . 1 . . . . . . . . . . . . . . . . Damage (minor) 1 | . . . . . . . . . . . . . . . . 1 . . . . . . . . . . . . Damage (major) 3 | . . . . . . . . . . . . . . . . . . . . . . . . . . . 3 . Siege Activations 17 | . . . . . . . . . . . . 1 . 2 3 3 . . . . . 1 1 4 . . 1 1 Total Turns 396 | . . . . . . . . . . . . 32 . 89 85 75 . . . . . 6 10 64 . . 21 14 Longest Duration 49 | . . . . . . . . . . . . 32 . 49 49 32 . . . . . 6 10 35 . . 21 14 Martial Activations . | . . . . . . . . . . . . . . . . . . . . . . . . . . . . . Shielding Activations 5 | . . . . . . . . . . . . . . . . . . 2 . 3 . . . . . . . . Total Turns 154 | . . . . . . . . . . . . . . . . . . 65 . 89 . . . . . . . . Longest Duration 69 | . . . . . . . . . . . . . . . . . . 35 . 69 . . . . . . . . Robots Disrupted 2 | . . . . . . . . . . . . . . . . . . . . . . . . . . 2 . . Combat Hostiles 2 | . . . . . . . . . . . . . . . . . . . . . . . . . . 2 . . Robots Corrupted 38 | . . . . . . 1 . . . . . . . . . . . . . . . . 3 8 5 6 8 7 Combat Hostiles 35 | . . . . . . . . . . . . . . . . . . . . . . . 3 8 5 5 8 6 Parts Fried 82 | . . . . . . 2 2 . . . . . . . . . . . . . 1 . 4 17 10 13 15 18 Impact Corruptions 8 | . . . . . . 1 . . . . . . . . . . . . . . . . . 1 . 3 . 3 Robots Melted 25 | . . . . . . . . . 1 2 . 3 . 1 1 2 . 3 . 7 . . 1 1 . . 3 . Combat Hostiles 19 | . . . . . . . . . 1 2 . 1 . 1 1 2 . 2 . 4 . . 1 1 . . 3 . Parts Melted 103 | . . . . . . . . . 8 7 . 6 . 9 10 8 . 12 2 20 . 1 2 5 2 5 2 4 Heat Transferred 30639 | . . . . . . . . 37 2405 978 481 3737 . 2368 2160 1849 481 1988 1176 3921 . 647 444 1210 1480 3145 1220 912 Parts Sabotaged 1 | . . . . . . . . . . . . . . . . . . . 1 . . . . . . . . . Parts Stolen . | . . . . . . . . . . . . . . . . . . . . . . . . . . . . . Parts Stripped . | . . . . . . . . . . . . . . . . . . . . . . . . . . . . . Power Chain Reactions 3 | . . . . . . . . . . . . . . . . . . . . . . . . 1 . . . 2 Alert | -11 -10 -10 -9 -9 -9 -8 -8 -8 -8 -8 -7 -7 -6 -6 -5 -5 -5 -5 -5 -5 -4 -4 -3 -3 -3 -2 -1 -1 ------- Run | Yrd Mat Min Mat Min Exi Min Mat Gar Mat Gar Fac Gar Fac Gar Fac Gar Fac Gar Fac Gar Fac Gar Res Tes Gar Res Acc Com Maximum Alert Level 4 | . . . 1 . . . . 2 1 4 3 4 2 3 2 3 2 4 3 4 2 3 2 . 3 2 1 2 Low Security (%) 37 | 100 100 100 56 100 . 100 100 18 72 12 31 16 30 23 15 . 12 16 . . . . 30 100 12 27 76 48 Level 1 20 | . . . 43 . . . . 34 27 12 . 8 50 30 38 8 40 17 21 12 18 17 39 . 15 11 23 40 Level 2 26 | . . . . . . . . 47 . 15 60 30 18 30 45 40 47 31 59 47 81 61 29 . 20 60 . 11 Level 3 12 | . . . . . . . . . . 28 8 36 . 14 . 51 . 22 18 37 . 21 . . 51 . . . Level 4 2 | . . . . . . . . . . 31 . 8 . . . . . 10 . 2 . . . . . . . . Level 5 . | . . . . . . . . . . . . . . . . . . . . . . . . . . . . . High Security . | . . . . . . . . . . . . . . . . . . . . . . . . . . . . . Max Security . | . . . . . . . . . . . . . . . . . . . . . . . . . . . . . Peak Influence 1406 | . 97 106 387 138 . 5 62 621 386 1331 755 1238 459 899 531 1020 535 1406 742 1233 646 861 485 172 972 574 390 532 Initial 737 | . . 31 37 138 . . . 14 302 7 698 50 459 . 471 203 535 22 737 246 646 264 483 172 . 546 194 142 Average 371 | . 20 101 171 43 . . 11 370 130 744 419 636 249 394 338 688 355 555 558 699 457 593 280 51 597 394 155 233 Influence Increases 20209 | . 300 75 1057 151 . 5 196 647 699 1424 243 1480 76 1066 680 987 372 1624 1005 1167 192 917 995 641 1182 1144 868 1016 Destroy 0b10 Robot/C 9470 | . 140 60 660 80 . . 80 380 380 760 135 675 45 450 315 450 105 735 345 465 75 375 420 375 525 495 480 465 Destroy 0b10 Robot/NC 480 | . 25 . 90 5 . 5 . 5 50 . 12 28 . 4 4 4 12 . 36 32 4 . 44 8 . 80 4 28 Destroy Leader 1370 | . 34 10 210 10 . . 20 20 136 40 28 48 8 24 58 40 38 48 72 48 18 32 82 56 48 86 74 82 Allied During Kill 2789 | . . . . . . . . . . 47 10 193 22 134 83 69 89 455 239 169 78 247 351 17 249 126 22 189 Trap Triggered on 0b10 20 | . . . . . . . 20 . . . . . . . . . . . . . . . . . . . . . Successful Hack 309 | . 10 . 31 . . . 11 12 56 . 2 18 . 11 . 17 31 . 30 11 5 . . 15 40 9 . . Select Force Hacks 189 | . 30 . 60 . . . 30 . . . 23 . . . . . 23 . 23 . . . . . . . . . Disable Machine 783 | . 15 . . 15 . . . . 15 30 12 60 . 12 72 12 60 . 180 24 12 12 36 108 . 24 60 24 Anti-Garrison Action 2580 | . . . . . . . . 150 . 425 . 340 . 379 . 265 . 340 . 340 . 189 . . 152 . . . Destroy Structure 1784 | . 16 5 6 11 . . 5 65 62 92 21 70 1 16 124 94 14 34 80 30 . 62 50 62 132 288 216 228 Partial Spotted 15 | . 15 . . . . . . . . . . . . . . . . . . . . . . . . . . . Lose Combat Pursuer 420 | . 15 . . 30 . . 30 15 . 30 . 48 . 36 24 36 . 12 . 48 . . 12 . 36 36 12 . Influence Decreases 19787 | . 219 60 798 449 57 5 174 48 1308 105 1502 677 951 167 1289 257 1360 250 2059 286 1047 434 1549 948 210 1791 970 817 Entered New Map 5423 | . . 50 59 217 57 . . 8 319 5 633 22 416 . 428 87 485 10 669 106 587 114 378 135 . 426 131 81 Time Decay 6427 | . 199 10 579 232 . 5 174 . 719 . 494 . 240 . 386 . 450 . 550 . 190 . 416 463 . 530 464 326 Lost Part 540 | . 20 . 10 . . . . 40 10 . . 40 . . 20 30 . . . 40 . 10 . 50 10 110 30 120 Lost Ally 3250 | . . . . . . . . . . 100 . 240 20 167 180 140 20 240 340 140 120 310 380 93 200 350 70 140 Purge Threat 4147 | . . . 150 . . . . . 260 . 375 375 275 . 275 . 405 . 500 . 150 . 375 207 . 375 275 150 Squads Dispatched 72 | . 2 . 4 . . . 1 . . . 4 . 3 . 6 . 5 . 7 . 2 . 10 10 . 11 4 3 Investigation 18 | . 1 . 4 . . . 1 . . . 1 . 1 . 1 . 2 . 2 . 1 . 1 . . 3 . . Extermination 24 | . . . . . . . . . . . 2 . 2 . 2 . 3 . 3 . . . 1 4 . 3 2 2 Reinforcement 19 | . 1 . . . . . . . . . 1 . . . 2 . . . . . . . 7 3 . 2 2 1 Assault 5 | . . . . . . . . . . . . . . . 1 . . . 2 . . . . . . 2 . . Garrison 6 | . . . . . . . . . . . . . . . . . . . . . 1 . 1 3 . 1 . . Intercept . | . . . . . . . . . . . . . . . . . . . . . . . . . . . . . Searches Triggered . | . . . . . . . . . . . . . . . . . . . . . . . . . . . . . Unchained Authorized 3 | . . . . . . . . . . . . . . . . . . . . . 1 . 1 . . 1 . . Construction Impeded 2 | . . . . . . . . . . . . . . . . . . . . . . . 1 1 . . . . Haulers Reinforced 4 | . . . . . . . . . . . . . . . . . . . . . . . 3 . . 1 . . Active Scanning Responses . | . . . . . . . . . . . . . . . . . . . . . . . . . . . . . Cargo Convoy Interrupts . | . . . . . . . . . . . . . . . . . . . . . . . . . . . . . Stealth | -11 -10 -10 -9 -9 -9 -8 -8 -8 -8 -8 -7 -7 -6 -6 -5 -5 -5 -5 -5 -5 -4 -4 -3 -3 -3 -2 -1 -1 --------- Run | Yrd Mat Min Mat Min Exi Min Mat Gar Mat Gar Fac Gar Fac Gar Fac Gar Fac Gar Fac Gar Fac Gar Res Tes Gar Res Acc Com Distress Signals 14 | . . . . . . . . . 1 . . . . . 1 . 3 . . . 3 . 1 1 . 3 . 1 Communications Jammed 35 | . . . . . . . . . . . . . 1 . . . . . 1 . . . 33 . . . . . Distress Signals 34 | . . . . . . . . . . . . . . . . . . . 1 . . . 33 . . . . . Times Spotted 836 | . 18 . 43 4 . . 6 21 27 29 23 48 6 43 29 35 17 49 43 42 6 39 49 48 42 90 39 40 Peak Tracking Total 11 | . 4 . 3 4 . . 3 6 5 6 4 5 3 5 9 5 3 6 5 7 2 7 10 9 6 9 11 9 Tactical Retreats 28 | . 1 . . 1 . . 2 1 . 2 . 3 . 2 2 3 . 1 . 2 . . 1 . 2 4 1 . Traps | -11 -10 -10 -9 -9 -9 -8 -8 -8 -8 -8 -7 -7 -6 -6 -5 -5 -5 -5 -5 -5 -4 -4 -3 -3 -3 -2 -1 -1 ------- Run | Yrd Mat Min Mat Min Exi Min Mat Gar Mat Gar Fac Gar Fac Gar Fac Gar Fac Gar Fac Gar Fac Gar Res Tes Gar Res Acc Com Traps Triggered 43 | . . . . . . . . 1 . 5 . 3 . 4 . 3 1 7 1 2 . 4 4 . 6 2 . . Indirectly . | . . . . . . . . . . . . . . . . . . . . . . . . . . . . . Trap Hack Attempts 108 | . . . . . . . 108 . . . . . . . . . . . . . . . . . . . . . Triggered . | . . . . . . . . . . . . . . . . . . . . . . . . . . . . . Disarmed 4 | . . . . . . . 2 . . . . . . . . . . . . . . . 2 . . . . . Reprogrammed 4 | . . . . . . . 4 . . . . . . . . . . . . . . . . . . . . . Reused 2 | . . . . . . . 2 . . . . . . . . . . . . . . . . . . . . . Traps Extracted . | . . . . . . . . . . . . . . . . . . . . . . . . . . . . . Installed . | . . . . . . . . . . . . . . . . . . . . . . . . . . . . . Triggered 2 | . . . . . . . 2 . . . . . . . . . . . . . . . . . . . . . Machines | -11 -10 -10 -9 -9 -9 -8 -8 -8 -8 -8 -7 -7 -6 -6 -5 -5 -5 -5 -5 -5 -4 -4 -3 -3 -3 -2 -1 -1 ---------- Run | Yrd Mat Min Mat Min Exi Min Mat Gar Mat Gar Fac Gar Fac Gar Fac Gar Fac Gar Fac Gar Fac Gar Res Tes Gar Res Acc Com Machines Disabled 107 | . 1 . . 1 . . . 1 1 4 1 11 . 9 6 6 5 6 15 7 1 5 3 9 5 2 5 3 Max in Single Turn 4 | . 1 . . 1 . . . 1 1 1 1 1 . 1 3 1 1 1 4 1 . 1 . 1 1 . 1 1 Garrison Access 6 | . . . . . . . . . . . 1 . . . . . . . . . . . 1 . . 1 3 . Garrison Relay 37 | . . . . . . . . 1 . 2 . 5 . 7 . 4 . 5 . 5 . 4 . . 4 . . . Machines Repaired . | . . . . . . . . . . . . . . . . . . . . . . . . . . . . . Machines Dismantled . | . . . . . . . . . . . . . . . . . . . . . . . . . . . . . Machines Sabotaged . | . . . . . . . . . . . . . . . . . . . . . . . . . . . . . Overloaded Fab Kills . | . . . . . . . . . . . . . . . . . . . . . . . . . . . . . Hacking | -11 -10 -10 -9 -9 -9 -8 -8 -8 -8 -8 -7 -7 -6 -6 -5 -5 -5 -5 -5 -5 -4 -4 -3 -3 -3 -2 -1 -1 --------- Run | Yrd Mat Min Mat Min Exi Min Mat Gar Mat Gar Fac Gar Fac Gar Fac Gar Fac Gar Fac Gar Fac Gar Res Tes Gar Res Acc Com Machines Accessed 121 | . 4 . 14 . 2 . 2 2 13 4 7 3 3 3 3 3 9 2 9 2 4 2 6 9 4 6 4 1 Terminals 79 | . 3 . 10 . . . 1 2 9 4 3 3 1 3 1 3 3 2 5 2 3 2 5 5 4 4 . 1 Fabricators 5 | . . . . . . . . . . . . . . . 1 . 2 . 1 . . . . 1 . . . . Repair Stations 6 | . . . 1 . . . . . 1 . 1 . . . . . 1 . 1 . . . . 1 . . . . Recycling Units 4 | . 1 . 2 . . . . . . . . . . . . . . . 1 . . . . . . . . . Scanalyzers 10 | . . . 1 . . . . . 2 . 1 . 1 . . . 2 . . . . . . 1 . 1 1 . Garrison Access 15 | . . . . . . . 1 . 1 . 2 . 1 . 1 . 1 . 1 . 1 . 1 1 . 1 3 . Total Hacks 292 | . 12 . 32 . 2 . 6 2 37 9 15 8 8 9 7 6 29 2 24 3 10 4 16 21 6 12 10 2 Successful 140 | . 7 . 17 . 2 . 5 1 24 1 8 2 5 1 3 2 15 . 11 1 4 2 4 12 4 3 6 . Failed 149 | . 5 . 14 . . . 1 1 12 8 7 6 3 8 4 4 14 2 13 2 6 2 12 8 2 9 4 2 Catastrophic 43 | . 2 . 3 . . . 1 . 2 2 . 1 1 . . . 3 2 4 . 3 . 2 7 . 5 4 1 Database Lockouts 3 | . . . 1 . . . . . 1 . . . . . . . . . . . . . . 1 . . . . Manual 109 | . 10 . 22 . 1 . 4 1 13 2 4 2 3 . . . 12 . 12 . 7 . 3 1 3 6 3 . Terminals 175 | . 11 . 25 . . . 3 2 25 9 5 8 2 9 1 6 7 2 9 3 8 4 14 7 6 7 . 2 Fabricators 18 | . . . . . . . . . . . . . . . 4 . 7 . 4 . . . . 3 . . . . Repair Stations 21 | . . . 2 . . . . . 6 . 3 . . . . . 6 . 3 . . . . 1 . . . . Recycling Units 7 | . 1 . 3 . . . . . . . . . . . . . . . 3 . . . . . . . . . Scanalyzers 28 | . . . 2 . . . . . 4 . 2 . 3 . . . 6 . . . . . . 8 . 2 1 . Garrison Access 41 | . . . . . . . 3 . 2 . 5 . 3 . 2 . 3 . 5 . 2 . 2 2 . 3 9 . Terminal Hacks 40 | . 3 . 6 . 2 . . 1 8 1 . 2 . 1 . 2 1 . 1 1 1 2 2 3 3 . . . Record 2 | . 1 . . . 1 . . . . . . . . . . . . . . . . . . . . . . . Robot Schematic 2 | . 1 . . . . . . . 1 . . . . . . . . . . . . . . . . . . . Robot Analysis 1 | . . . 1 . . . . . . . . . . . . . . . . . . . . . . . . . Prototype ID Bank 4 | . 1 . 3 . . . . . . . . . . . . . . . . . . . . . . . . . Open Door 3 | . . . . . . . . . . 1 . . . . . 1 . . . . . . . . 1 . . . Branch Access Points 1 | . . . . . . . . . . . . . . . . . . . . . . . 1 . . . . . Emergency Access Points 2 | . . . . . . . . . . . . 1 . . . . . . . . . 1 . . . . . . Unreport Threat 6 | . . . 1 . . . . . 2 . . . . . . . 1 . . . 1 . . 1 . . . . Locate Traps 3 | . . . . . . . . . 2 . . . . . . . . . . . . . . 1 . . . . Disarm Traps 1 | . . . . . . . . . . . . . . . . . . . . . . . 1 . . . . . Patrol Status 1 | . . . . . . . . . . . . . . . . . . . 1 . . . . . . . . . Recall Extermination 1 | . . . . . . . . . . . . . . . . . . . . . . . . 1 . . . . Hauler Manifests 1 | . . . . . . . . . 1 . . . . . . . . . . . . . . . . . . . Registered Components 1 | . . . . . . . . . 1 . . . . . . . . . . . . . . . . . . . Zone Layout 2 | . . . 1 . . . . . 1 . . . . . . . . . . . . . . . . . . . Garrison Registry 5 | . . . . . . . . 1 . . . . . . . 1 . . . 1 . 1 . . 1 . . . Patrol Navigation 3 | . . . . . . . . . . . . 1 . 1 . . . . . . . . . . 1 . . . Proto ID Catalog 1 | . . . . . 1 . . . . . . . . . . . . . . . . . . . . . . . Fabricator Hacks 7 | . . . . . . . . . . . . . . . 1 . 3 . 2 . . . . 1 . . . . Network Status 1 | . . . . . . . . . . . . . . . . . 1 . . . . . . . . . . . Load Schematic 4 | . . . . . . . . . . . . . . . 1 . 1 . 1 . . . . 1 . . . . Build 2 | . . . . . . . . . . . . . . . . . 1 . 1 . . . . . . . . . Repair Station Hacks 12 | . . . 2 . . . . . 4 . 2 . . . . . 2 . 2 . . . . . . . . . Scan Component 6 | . . . 1 . . . . . 2 . 1 . . . . . 1 . 1 . . . . . . . . . Repair 6 | . . . 1 . . . . . 2 . 1 . . . . . 1 . 1 . . . . . . . . . Recycling Unit Hacks . | . . . . . . . . . . . . . . . . . . . . . . . . . . . . . Scanalyzer 17 | . . . 1 . . . . . 3 . 1 . 2 . . . 4 . . . . . . 6 . . . . Insert Component 1 | . . . . . . . . . 1 . . . . . . . . . . . . . . . . . . . Analyze 1 | . . . . . . . . . 1 . . . . . . . . . . . . . . . . . . . Retrieve Study 15 | . . . 1 . . . . . 1 . 1 . 2 . . . 4 . . . . . . 6 . . . . Garrison Access Hacks 30 | . . . . . . . 2 . 2 . 4 . 2 . 2 . 2 . 2 . 2 . 2 2 . 2 6 . Unlock Access 9 | . . . . . . . 1 . 1 . 1 . 1 . 1 . 1 . 1 . 1 . . 1 . . . . Seal Access 6 | . . . . . . . . . . . 1 . . . . . . . . . . . 1 . . 1 3 . Coupler Status 15 | . . . . . . . 1 . 1 . 2 . 1 . 1 . 1 . 1 . 1 . 1 1 . 1 3 . Unauthorized Hacks 34 | . 4 . 8 . . . 3 . 7 . 1 . 1 . . . 3 . 4 . 1 . . . 1 1 . . Terminals 23 | . 3 . 6 . . . 2 . 7 . . . 1 . . . 1 . 1 . 1 . . . 1 . . . Assimilate 2 | . . . . . . . 1 . 1 . . . . . . . . . . . . . . . . . . . Botnet 4 | . . . 1 . . . 1 . 1 . . . 1 . . . . . . . . . . . . . . . Disrupt 1 | . . . . . . . . . . . . . . . . . . . . . . . . . 1 . . . Operators 3 | . . . . . . . . . . . . . . . . . 1 . 1 . 1 . . . . . . . Skim 13 | . 3 . 5 . . . . . 5 . . . . . . . . . . . . . . . . . . . Fabricators 1 | . . . . . . . . . . . . . . . . . 1 . . . . . . . . . . . Haulers 1 | . . . . . . . . . . . . . . . . . 1 . . . . . . . . . . . Repair Stations 1 | . . . . . . . . . . . . . . . . . . . 1 . . . . . . . . . Mechanics 1 | . . . . . . . . . . . . . . . . . . . 1 . . . . . . . . . Recycling Units 4 | . 1 . 2 . . . . . . . . . . . . . . . 1 . . . . . . . . . Recyclers 1 | . . . . . . . . . . . . . . . . . . . 1 . . . . . . . . . Tunnel 3 | . 1 . 2 . . . . . . . . . . . . . . . . . . . . . . . . . Scanalyzers . | . . . . . . . . . . . . . . . . . . . . . . . . . . . . . Garrison Access 5 | . . . . . . . 1 . . . 1 . . . . . 1 . 1 . . . . . . 1 . . Restock 1 | . . . . . . . . . . . . . . . . . . . . . . . . . . 1 . . Eject 4 | . . . . . . . 1 . . . 1 . . . . . 1 . 1 . . . . . . . . . Data Cores Recovered . | . . . . . . . . . . . . . . . . . . . . . . . . . . . . . Used . | . . . . . . . . . . . . . . . . . . . . . . . . . . . . . Hacking Detections 103 | . 3 . 11 . . . 2 1 10 4 6 3 3 3 3 2 8 2 9 2 4 2 5 7 2 6 4 1 Full Trace Events 16 | . . . 3 . . . . . . 3 . . 1 1 1 1 1 . 1 . 1 . 1 . . 2 . . Feedback Events 1 | . . . . . . . . . . 1 . . . . . . . . . . . . . . . . . . Corruption 1 | . . . . . . . . . . 1 . . . . . . . . . . . . . . . . . . Feedback Blocked . | . . . . . . . . . . . . . . . . . . . . . . . . . . . . . Robot Schematics Acquired 2 | . 1 . . . . . . . 1 . . . . . . . . . . . . . . . . . . . Robots Built 1 | . . . . . . . . . . . . . . . . . . . 1 . . . . . . . . . Authchips . | . . . . . . . . . . . . . . . . . . . . . . . . . . . . . Time 81 | . . . . . . . . . . . . . . . . . . . 81 . . . . . . . . . Total Robot Build Rating 1 | . . . . . . . . . . . . . . . . . . . 1 . . . . . . . . . Part Schematics Acquired 2 | . . . . . . . . . 1 . . . . . . . . . . . . . . 1 . . . . Parts Built 2 | . . . . . . . . . . . . . . . . . 2 . . . . . . . . . . . Authchips . | . . . . . . . . . . . . . . . . . . . . . . . . . . . . . Time 128 | . . . . . . . . . . . . . . . . . 128 . . . . . . . . . . . Total Part Build Rating 16 | . . . . . . . . . . . . . . . . . 16 . . . . . . . . . . . Part Studies Acquired 15 | . . . 1 . . . . . 1 . 1 . 2 . . . 4 . . . . . . 6 . . . . Parts Repaired 6 | . . . 1 . . . . . 2 . 1 . . . . . 1 . 1 . . . . . . . . . Time 350 | . . . 32 . . . . . 120 . 44 . . . . . 80 . 74 . . . . . . . . . Parts Recycled . | . . . . . . . . . . . . . . . . . . . . . . . . . . . . . Recycled Matter . | . . . . . . . . . . . . . . . . . . . . . . . . . . . . . Retrieved Matter . | . . . . . . . . . . . . . . . . . . . . . . . . . . . . . Retrieved Components . | . . . . . . . . . . . . . . . . . . . . . . . . . . . . . Parts Scanalyzed 1 | . . . . . . . . . 1 . . . . . . . . . . . . . . . . . . . Part Schematics Acquired 1 | . . . . . . . . . 1 . . . . . . . . . . . . . . . . . . . Parts Damaged 1 | . . . . . . . . . 1 . . . . . . . . . . . . . . . . . . . Bothacking | -11 -10 -10 -9 -9 -9 -8 -8 -8 -8 -8 -7 -7 -6 -6 -5 -5 -5 -5 -5 -5 -4 -4 -3 -3 -3 -2 -1 -1 ------------ Run | Yrd Mat Min Mat Min Exi Min Mat Gar Mat Gar Fac Gar Fac Gar Fac Gar Fac Gar Fac Gar Fac Gar Res Tes Gar Res Acc Com Used RIF Installer 12 | . . . . . . . . 1 . 1 . 1 . 2 . 2 . 1 . 1 . 2 . . 1 . . . Code Merge 2 | . . . . . . . . . . . . . . 1 . . . 1 . . . . . . . . . . Command Fork 1 | . . . . . . . . . . . . . . . . 1 . . . . . . . . . . . . Threat Obfuscator 1 | . . . . . . . . . . 1 . . . . . . . . . . . . . . . . . . Zone Cloak 1 | . . . . . . . . . . . . . . . . . . . . 1 . . . . . . . . Robot Detection 1 | . . . . . . . . . . . . . . . . . . . . . . . . . 1 . . . Watcher Feeds 1 | . . . . . . . . . . . . . . . . . . . . . . 1 . . . . . . Structural Interface 1 | . . . . . . . . . . . . 1 . . . . . . . . . . . . . . . . Program Shield 1 | . . . . . . . . . . . . . . . . 1 . . . . . . . . . . . . Autooverride 1 | . . . . . . . . . . . . . . . . . . . . . . 1 . . . . . . Autoassimilate 1 | . . . . . . . . . . . . . . 1 . . . . . . . . . . . . . . Robots Hacked 209 | . . . . . . . 2 . . 1 6 12 3 14 5 13 9 13 11 13 3 16 18 15 9 22 10 14 Non-combat 41 | . . . . . . . 2 . . 1 2 2 1 . 2 . 3 . 3 . 3 . 6 4 . 4 4 4 Combat 168 | . . . . . . . . . . . 4 10 2 14 3 13 6 13 8 13 . 16 12 11 9 18 6 10 Autooverrided 10 | . . . . . . . . . . . . . . . . . . . . . . 1 1 1 . 2 1 4 Autoassimilated 35 | . . . . . . . . . . . . . . 3 2 5 2 2 2 4 . 1 3 2 1 3 2 3 Robot Hacks Applied 194 | . . . . . . . 2 . . 1 9 15 5 12 5 8 8 12 15 9 3 14 18 13 8 21 8 8 parse_system 14 | . . . . . . . 2 . . . . 2 . 1 . . . 1 1 1 . . 1 . 2 2 1 . find_chute 1 | . . . . . . . . . . . 1 . . . . . . . . . . . . . . . . . drop_inventory 14 | . . . . . . . . . . . . . . . . . 1 . 1 . 2 . 4 2 . 1 3 . purge_threat 27 | . . . . . . . . . . . 3 3 2 . 2 . 2 . 5 . . . 3 1 . 3 2 1 block_reporting 7 | . . . . . . . . . . . . . 1 . . . . . 2 . . . . 1 . 1 . 2 map_route 2 | . . . . . . . . . . . . . . . . . . . . . . . . . . . . 2 mark_system 1 | . . . . . . . . . . . . . . 1 . . . . . . . . . . . . . . broadcast_data 1 | . . . . . . . . . . . . . . . . . . . . . . . . . . . . 1 overload_power 2 | . . . . . . . . . . . . . . . . . . . . . . . 1 . . 1 . . amplify_resonance 30 | . . . . . . . . . . . 1 2 1 2 1 3 3 1 1 3 . 4 1 1 3 3 . . go_dormant 1 | . . . . . . . . . . . . . . . . . . 1 . . . . . . . . . . overwrite_iff 19 | . . . . . . . . . . . 1 2 . 1 1 1 . 2 2 1 . 2 1 2 2 1 . . streamctrl_low 1 | . . . . . . . . . . . . . . . 1 . . . . . . . . . . . . . formatsys_low 7 | . . . . . . . . . . 1 1 1 . . . . 1 . . . 1 . 1 . . 1 . . formatsys_high 67 | . . . . . . . . . . . 2 5 1 7 . 4 1 7 3 4 . 8 6 6 1 8 2 2 Relay Couplers Released 177 | . . . . . . . 3 5 . 8 2 22 . 27 . 17 4 23 4 19 . 18 2 . 14 6 3 . Ejected 12 | . . . . . . . 3 . . . 1 . . . . . 4 . 4 . . . . . . . . . Machine Destruction 157 | . . . . . . . . 5 . 8 1 22 . 27 . 17 . 19 . 19 . 18 2 . 14 2 3 . Programmers 8 | . . . . . . . . . . . . . . . . . . 4 . . . . . . . 4 . . Attached 58 | . . . . . . . . . . 1 4 7 2 9 1 4 3 7 . 3 . 2 2 2 2 3 3 3 Merged Code Value 633 | . . . . . . . . . . . . . . . . . . 80 . 193 . 190 11 . 139 20 . . Fabnet Peak Effective % . | . . . . . . . . . . . . . . . . . . . . . . . . . . . . . Robots Rewired 65 | . . . . . . . . . . 2 . 15 . 7 . 2 . 13 . 12 . 8 . . 6 . . . Allies Hacked 3 | . . . . . . . . . . 1 . . . . . . 1 . . . . 1 . . . . . . Hacks Repelled . | . . . . . . . . . . . . . . . . . . . . . . . . . . . . . Allies | -11 -10 -10 -9 -9 -9 -8 -8 -8 -8 -8 -7 -7 -6 -6 -5 -5 -5 -5 -5 -5 -4 -4 -3 -3 -3 -2 -1 -1 -------- Run | Yrd Mat Min Mat Min Exi Min Mat Gar Mat Gar Fac Gar Fac Gar Fac Gar Fac Gar Fac Gar Fac Gar Res Tes Gar Res Acc Com Total Allies 227 | . . . . 1 . . 1 . 1 5 4 23 1 18 4 13 5 27 9 21 2 23 13 11 12 19 5 9 Largest Group 16 | . . . . 1 . . 1 1 2 4 4 12 13 10 8 5 10 15 16 13 12 13 15 4 8 7 2 4 Highest-Rated Group 774 | . . . . 31 . . 10 10 20 79 94 315 347 347 280 299 365 648 588 455 422 644 774 239 536 485 288 559 Highest-Rated Ally 219 | . . . . 31 . . 10 10 10 39 32 32 32 85 41 116 49 68 68 85 47 116 142 64 148 148 219 219 Total Orders 64 | . . . . . . . 2 6 10 9 2 2 1 . . 2 3 2 7 6 1 . . . 2 3 6 . STAY 27 | . . . . . . . 1 3 7 4 1 1 . . . 1 1 1 2 3 . . . . 1 1 . . FOLLOW 21 | . . . . . . . 1 3 3 4 1 . . . . 1 1 . 2 3 . . . . 1 1 . . AID 10 | . . . . . . . . . . 1 . 1 1 . . . 1 1 3 . 1 . . . . 1 . . EXPLORE 4 | . . . . . . . . . . . . . . . . . . . . . . . . . . . 4 . RETURN 2 | . . . . . . . . . . . . . . . . . . . . . . . . . . . 2 . Ally Attacks 1301 | . . . . . . . . . . 80 7 91 17 81 51 28 38 192 70 98 43 120 124 20 93 93 14 41 Total Damage 43491 | . . . . . . . . . . 1931 229 2975 447 2427 1630 881 1024 6093 2556 2791 971 3629 4122 591 3398 3901 1251 2644 Kills 287 | . . . . . . . . . . 23 4 32 4 15 8 10 8 39 25 14 5 19 30 . 19 20 1 11 Allies Corrupted 16 | . . . . . . . . . . 1 . . 1 . . . . 2 3 . . . 2 1 1 4 . 1 Allies Melted 9 | . . . . . . . . . . . . . . . . 2 . 3 . 2 . 1 . . 1 . . . Turrets Deployed 3 | . . . . . . . . . . 2 . 1 . . . . . . . . . . . . . . . . Intel | -11 -10 -10 -9 -9 -9 -8 -8 -8 -8 -8 -7 -7 -6 -6 -5 -5 -5 -5 -5 -5 -4 -4 -3 -3 -3 -2 -1 -1 ------- Run | Yrd Mat Min Mat Min Exi Min Mat Gar Mat Gar Fac Gar Fac Gar Fac Gar Fac Gar Fac Gar Fac Gar Res Tes Gar Res Acc Com Active Infowar (turns) 10207 | . . . . . . . . . . . . . 642 160 369 684 421 1987 1587 1792 392 1504 446 223 . . . . Jamming 10207 | . . . . . . . . . . . . . 642 160 369 684 421 1987 1587 1792 392 1504 446 223 . . . . Robot Analysis Total 1 | . . . 1 . . . . . . . . . . . . . . . . . . . . . . . . . Derelict Logs Recovered . | . . . . . . . . . . . . . . . . . . . . . . . . . . . . . Drone Launches 4 | . . . . . . . . . . . . . . . . . . . . . . . . . . . 4 . Drone Recoveries 3 | . . . . . . . . . . . . . . . . . . . . . . . . . . . 3 . Exploration | -11 -10 -10 -9 -9 -9 -8 -8 -8 -8 -8 -7 -7 -6 -6 -5 -5 -5 -5 -5 -5 -4 -4 -3 -3 -3 -2 -1 -1 ------------- Run | Yrd Mat Min Mat Min Exi Min Mat Gar Mat Gar Fac Gar Fac Gar Fac Gar Fac Gar Fac Gar Fac Gar Res Tes Gar Res Acc Com Turns Passed 37770 | 56 762 37 3008 1056 432 852 796 1497 3369 1865 1312 2081 657 1716 906 1607 1262 2050 1587 1810 392 1504 1008 1641 1117 1481 1175 734 Spaces Moved 17413 | 30 365 21 1444 510 214 401 285 588 1396 823 570 922 384 827 386 698 573 911 714 827 160 826 421 797 625 795 562 338 Core 2 | 2 . . . . . . . . . . . . . . . . . . . . . . . . . . . . Treads 13162 | 28 365 21 1444 510 214 401 285 588 1396 823 570 922 384 827 386 283 . . . 614 160 826 421 659 . 135 562 338 Legs 4249 | . . . . . . . . . . . . . . . . 415 573 911 714 213 . . . 138 625 660 . . Wheels . | . . . . . . . . . . . . . . . . . . . . . . . . . . . . . Hover . | . . . . . . . . . . . . . . . . . . . . . . . . . . . . . Flight . | . . . . . . . . . . . . . . . . . . . . . . . . . . . . . Fastest Speed 50 | 50 160 160 160 200 200 200 210 210 210 200 200 160 160 160 160 160 200 133 133 125 160 160 160 113 113 110 161 161 Average Speed 174 | 152 160 160 170 200 200 200 210 210 210 200 200 169 160 161 160 186 202 190 134 161 160 160 161 163 143 123 161 161 Slowest Speed 480 | 160 160 160 200 200 200 200 210 210 210 210 200 240 160 240 160 240 203 203 200 240 160 160 166 260 196 480 161 234 Overloaded Moves . | . . . . . . . . . . . . . . . . . . . . . . . . . . . . . Propulsion Burnouts . | . . . . . . . . . . . . . . . . . . . . . . . . . . . . . Robots Hopped 1 | . . . . . . . . . . . . . . . . . . . . . . . 1 . . . . . Potential Cave-ins . | . . . . . . . . . . . . . . . . . . . . . . . . . . . . . Cave-ins Triggered . | . . . . . . . . . . . . . . . . . . . . . . . . . . . . . Exploration Rate (%) 54 | 3 54 7 97 98 59 91 15 57 90 90 17 91 13 94 13 93 21 97 25 83 5 88 29 94 90 36 23 21 Regions Visited 28 Branch Regions 6 Pre-discovered Areas 6 | . 1 . 4 . 1 . . . . . . . . . . . . . . . . . . . . . . . Known Exits Taken 12 | . . . 1 . . 1 1 . 1 . 1 . 1 . 1 . 1 . 1 . 1 . 1 1 . . . . Unknown Exits Taken 7 | 1 1 1 . 1 1 . . . . . . . . . . . . . . . . . . . . 1 1 . Scrap Searched 2 | . . . . 1 . 1 . . . . . . . . . . . . . . . . . . . . . . Spaces Dug 62 | . . . 1 . . . 3 . 9 . 10 . 1 . 2 9 . 6 . . . . 2 9 1 5 4 . Terrain Destroyed 642 | . 21 5 1 12 . . 3 16 55 10 22 . 1 . 60 73 4 11 48 11 . 7 12 33 49 92 56 40 Melee 4 | . . . 1 . . . 3 . . . . . . . . . . . . . . . . . . . . . Projectile 175 | . . . . . . . . . 35 . 11 . 1 . 14 5 4 5 3 11 . 7 12 19 6 29 12 1 AOE 463 | . 21 5 . 12 . . . 16 20 10 11 . . . 46 68 . 6 45 . . . . 14 43 63 44 39 Terrain Rammed . | . . . . . . . . . . . . . . . . . . . . . . . . . . . . . Walls Destroyed . | . . . . . . . . . . . . . . . . . . . . . . . . . . . . . Machines Disabled . | . . . . . . . . . . . . . . . . . . . . . . . . . . . . . Actions | -11 -10 -10 -9 -9 -9 -8 -8 -8 -8 -8 -7 -7 -6 -6 -5 -5 -5 -5 -5 -5 -4 -4 -3 -3 -3 -2 -1 -1 --------- Run | Yrd Mat Min Mat Min Exi Min Mat Gar Mat Gar Fac Gar Fac Gar Fac Gar Fac Gar Fac Gar Fac Gar Res Tes Gar Res Acc Com Total 23133 | 37 452 23 1763 531 222 449 456 746 1725 971 695 1255 418 1084 604 917 646 1134 1292 1172 289 974 735 1125 844 1247 811 516 Wait 2647 | . 19 . 80 10 . 44 32 60 233 47 63 61 15 124 152 73 30 74 518 136 112 60 208 117 37 180 91 71 Move 17388 | 29 364 20 1443 509 213 400 284 587 1396 822 569 921 384 826 386 697 572 910 714 826 160 825 418 797 624 794 561 337 Hop 1 | . . . . . . . . . . . . . . . . . . . . . . . 1 . . . . . Pick Up 220 | 2 12 1 23 . 5 2 3 9 6 7 5 21 1 12 4 17 4 10 . 23 1 6 3 14 9 10 9 1 Fast Attach 80 | 6 1 . 6 . . . 1 1 4 1 3 7 1 . 1 4 . 6 2 8 . 2 4 9 2 7 2 2 Attach 99 | . 2 1 2 . . . 2 4 1 . 3 8 1 4 3 9 1 3 2 10 2 1 4 9 1 13 9 4 Detach 39 | . . . . . . . 1 . 1 1 . 4 . 1 2 . . 4 2 5 . 1 1 8 . 3 4 1 Swap 354 | . 2 . 24 2 1 . 4 8 9 11 18 24 5 27 9 33 10 26 6 20 1 8 13 24 17 25 17 10 Drop 213 | . 1 . 35 . 3 . 2 6 12 10 3 24 . 6 6 13 3 10 . 26 2 4 5 16 9 14 3 . Fire 1762 | . 50 1 141 8 . . 14 55 59 44 31 141 9 83 41 56 24 78 44 110 11 65 62 127 119 189 114 86 Melee 18 | . . . 1 . . . 5 12 . . . . . . . . . . . . . . . . . . . . Ram . | . . . . . . . . . . . . . . . . . . . . . . . . . . . . . Kick 12 | . . . . . . . . . . . . . . . . . 1 . 2 . . . . . 2 7 . . Crush 49 | . 1 . 8 2 . 3 . 2 4 1 . 1 1 . . . . . . . . 1 14 4 . 2 1 4 Escape Stasis 68 | . . . . . . . . 2 . 10 . 4 . . . 15 . 10 . 4 . . . . 23 . . . Rewire 75 | . . . . . . . . . . 17 . 39 1 1 . . 1 3 2 4 . 1 2 . 1 3 . . Trap 108 | . . . . . . . 108 . . . . . . . . . . . . . . . . . . . . . Miscellaneous . | . . . . . . . . . . . . . . . . . . . . . . . . . . . . . Route ------- -11/Scrapyard -10/Materials (discovered 2 exits: *Mat / [*Min]) -10/Mines -9/Materials (discovered 6 exits: *Mat x3 / *Min / *Sto x2) -9/Mines (discovered 3 exits: *Mat x2 / *Exi) -9/Exiles (discovered 2 exits: [*Min x2]) -8/Mines (discovered 2 exits: *Mat x2) -8/Materials (discovered 4 exits: Fac x3 / Gar) -8/Garrison (discovered 3 exits: *Mat x3) -8/Materials (discovered 4 exits: *Fac x3 / Gar) -8/Garrison (discovered 3 exits: *Fac x3) -7/Factory (discovered 3 exits: *Fac x2 / Gar) -7/Garrison (discovered 3 exits: *Fac x3) -6/Factory -6/Garrison (discovered 3 exits: *Fac x3) -5/Factory -5/Garrison (discovered 3 exits: *Fac x3) -5/Factory (discovered 2 exits: *Fac / Gar) -5/Garrison (discovered 4 exits: *Fac x3 / *Fac) -5/Factory -5/Garrison (discovered 3 exits: *Fac x3) -4/Factory (discovered 2 exits: *Res / Gar) -4/Garrison (discovered 3 exits: *Res x3) -3/Research (discovered 3 exits: *Res / *Tes x2) -3/Testing (discovered 2 exits: *Res / Gar) -3/Garrison (discovered 3 exits: *Res x3) -2/Research (discovered 2 exits: *Acc / [*Qua]) -1/Access -1/Command To Epsilon Eridani History --------- Turn | Location | Event 2 | -11/Scrapyard | Met Revision 17 30 | -11/Scrapyard | Discovered new exit (range 14) 57 | -11/Scrapyard | Entered Materials 315 | -10/Materials | Build established: Mutant 398 | -10/Materials | Discovered new exit (range 14) 642 | -10/Materials | Discovered new exit (range 8) 796 | -10/Materials | Core integrity fell below 50% 819 | -10/Materials | Entered Mines 839 | -10/Mines | Discovered new exit (range 12) 856 | -10/Mines | Entered Materials 856 | -9/Materials | Evolved 2 slots: Propulsion x1, Utility x1 1597 | -9/Materials | Discovered new exit (range 16) 2407 | -9/Materials | Discovered new exit (range 16) 2485 | -9/Materials | Learned Storage stockpile data 2563 | -9/Materials | Identified exit to Storage 2563 | -9/Materials | Identified exit to Mines 2588 | -9/Materials | Learned location of 2 exits from Materials 2602 | -9/Materials | Identified exit to Materials 2606 | -9/Materials | Learned location of Zion (-6) 2621 | -9/Materials | Learned location of 2 exits from Materials 2645 | -9/Materials | Learned 2 Storage zone layouts 2729 | -9/Materials | Central database locked down 3270 | -9/Materials | Repaired Med. Armor Plating 3864 | -9/Materials | Entered Mines 3943 | -9/Mines | Met a Derelict bent on vengeance 4135 | -9/Mines | Received a Mining Laser from a helpful Derelict 4240 | -9/Mines | A weapon hastily lodged in a ceiling crevice suddenly fell to the ground 4346 | -9/Mines | Deemed a non-threat by the Exiles lab entrance 4346 | -9/Mines | Discovered new exit (range 5) 4609 | -9/Mines | Received a Rocket Launcher from a helpful Derelict 4920 | -9/Mines | Entered Exiles 4950 | -9/Exiles | Discovered new exit (range 15) 4974 | -9/Exiles | Met 8R-AWN 5000 | -9/Exiles | Met EX-HEX 5056 | -9/Exiles | Met EX-BIN 5082 | -9/Exiles | Aligned with FarCom system 5084 | -9/Exiles | Given EX-Vault access code 5132 | -9/Exiles | Opened EX-Vault 5148 | -9/Exiles | Found Longsword +1 5157 | -9/Exiles | Found Supersonic Drone Bay 5160 | -9/Exiles | Found Deploy-a-Sentry 5166 | -9/Exiles | Found Deploy-a-Sentry 5169 | -9/Exiles | Found Deploy-a-Sentry 5208 | -9/Exiles | Warned to stay clear of 0b10 Research branches 5219 | -9/Exiles | Exiles lab attacked by MAIN.C 5330 | -9/Exiles | Discovered new exit (range 14) 5352 | -9/Exiles | Stole three prototypes: Supersonic Drone Bay, Longsword +1, Deploy-a-Sentry 5352 | -9/Exiles | Entered Mines 5408 | -8/Mines | Discovered exit to Materials (range 10) 5984 | -8/Mines | Discovered exit to Materials (range 7) 6204 | -8/Mines | Entered Materials 6204 | -8/Materials | Evolved 2 slots: Propulsion x1, Utility x1 6205 | -8/Materials | Identified exit to Factory 6979 | -8/Materials | Identified exit to Garrison 7000 | -8/Materials | Entered Garrison 7000 | -8/Garrison | Accompanied by 1 ally 7142 | -8/Garrison | Triggered checkpoint 7275 | -8/Garrison | Triggered checkpoint 7460 | -8/Garrison | Triggered checkpoint 7770 | -8/Garrison | Lost 4 parts (2n2u) 7870 | -8/Garrison | Discovered new exit (range 47) 7870 | -8/Garrison | Discovered new exit (range 55) 7870 | -8/Garrison | Discovered new exit (range 51) 7976 | -8/Garrison | Triggered checkpoint 7984 | -8/Garrison | Garrison Relay disabled 8016 | -8/Garrison | Installed Relay Interface Framework 8319 | -8/Garrison | Build established: Bothacker-Mutant 8497 | -8/Garrison | Entered Materials 8497 | -8/Materials | Accompanied by 1 ally 9808 | -8/Materials | Discovered exit to Factory (range 16) 10077 | -8/Materials | Build established: Scavenger-Mutant 10398 | -8/Materials | Central database locked down 10838 | -8/Materials | Repaired Lgt. Angular Momentum Engine 11021 | -8/Materials | Discovered exit to Factory (range 16) 11284 | -8/Materials | Repaired Broken Phase Cannon 11553 | -8/Materials | Learned 8 Factory zone layouts 11601 | -8/Materials | Learned Factory stockpile data 11637 | -8/Materials | Learned Storage security intel 11662 | -8/Materials | Learned Factory stockpile data 11675 | -8/Materials | Learned 2 Storage zone layouts 11679 | -8/Materials | Learned 2 Storage zone layouts 11693 | -8/Materials | Learned 2 Storage zone layouts 11719 | -8/Materials | Learned Factory stockpile data 11754 | -8/Materials | Learned Storage emergency access door positions 11866 | -8/Materials | Identified exit to Garrison 11866 | -8/Materials | Entered Garrison 11866 | -8/Garrison | Accompanied by 2 allies 11975 | -8/Garrison | Rescued a captive Derelict 11975 | -8/Garrison | Rescued a captive Derelict 12044 | -8/Garrison | Triggered checkpoint 12444 | -8/Garrison | DAS Turret deployed 12445 | -8/Garrison | Triggered checkpoint 12457 | -8/Garrison | Triggered checkpoint 12547 | -8/Garrison | Build established: Bothacker-Mutant 12606 | -8/Garrison | Triggered checkpoint 12624 | -8/Garrison | Garrison Relay disabled 12685 | -8/Garrison | Discovered exit to Factory (range 13) 12914 | -8/Garrison | DAS Turret deployed 13132 | -8/Garrison | Garrison Relay disabled 13233 | -8/Garrison | Discovered exit to Factory (range 10) 13318 | -8/Garrison | Triggered checkpoint 13364 | -8/Garrison | Lost 3 allies 13490 | -8/Garrison | Triggered checkpoint 13557 | -8/Garrison | Expanded RIF knowledge: Threat Obfuscation 13597 | -8/Garrison | Discovered exit to Factory (range 10) 13731 | -8/Garrison | Entered Factory 13731 | -7/Factory | Accompanied by 1 ally 13731 | -7/Factory | Evolved 2 slots: Utility x2 13733 | -7/Factory | FarCom data flow suspended 13827 | -7/Factory | Discovered new exit (range 15) 14756 | -7/Factory | Discovered new exit (range 15) 14816 | -7/Factory | Repaired Hrd. Heavy Armor Plating 15022 | -7/Factory | Identified exit to Garrison 15043 | -7/Factory | Entered Garrison 15043 | -7/Garrison | Accompanied by 4 allies 15127 | -7/Garrison | Lost 4 allies 15255 | -7/Garrison | DAS Turret deployed 15259 | -7/Garrison | Triggered checkpoint 15265 | -7/Garrison | Triggered checkpoint 15295 | -7/Garrison | Triggered checkpoint 15373 | -7/Garrison | Triggered checkpoint 15399 | -7/Garrison | Triggered checkpoint 15465 | -7/Garrison | Garrison Relay disabled 15531 | -7/Garrison | Heavy support dispatched to Factory 15919 | -7/Garrison | Garrison Relay disabled 15947 | -7/Garrison | Discovered new exit (range 9) 16009 | -7/Garrison | Lost 3 allies 16093 | -7/Garrison | Triggered checkpoint 16120 | -7/Garrison | Garrison Relay disabled 16232 | -7/Garrison | Expanded RIF knowledge: Structural Interface 16271 | -7/Garrison | Discovered new exit (range 12) 16285 | -7/Garrison | Triggered checkpoint 16297 | -7/Garrison | Triggered checkpoint 16307 | -7/Garrison | Garrison Relay disabled 16311 | -7/Garrison | Heavy support dispatched to Factory 16491 | -7/Garrison | Triggered checkpoint 16535 | -7/Garrison | Triggered checkpoint 16628 | -7/Garrison | Lost 5 allies 16680 | -7/Garrison | Garrison Relay disabled 16935 | -7/Garrison | Discovered new exit (range 14) 16973 | -7/Garrison | H-XX Assembler disabled 17124 | -7/Garrison | Entered Factory 17124 | -6/Factory | Accompanied by 12 allies 17124 | -6/Factory | Evolved 2 slots: Power x1, Utility x1 17384 | -6/Factory | Lost 6 allies 17781 | -6/Factory | Identified exit to Garrison 17781 | -6/Factory | Entered Garrison 17781 | -6/Garrison | Accompanied by 4 allies 17871 | -6/Garrison | Spotted B-75 Beast 17907 | -6/Garrison | Destroyed B-75 Beast 17917 | -6/Garrison | Lost 4 allies 17939 | -6/Garrison | Found Relay Coupler [Proto] 17943 | -6/Garrison | Found Relay Coupler [Proto] 17989 | -6/Garrison | Triggered checkpoint 18037 | -6/Garrison | Garrison Relay disabled 18159 | -6/Garrison | Spotted B-75 Beast 18185 | -6/Garrison | Destroyed B-75 Beast 18253 | -6/Garrison | Triggered checkpoint 18253 | -6/Garrison | Triggered checkpoint 18290 | -6/Garrison | Triggered checkpoint 18337 | -6/Garrison | Triggered checkpoint 18349 | -6/Garrison | Garrison Relay disabled 18481 | -6/Garrison | Discovered new exit (range 12) 18622 | -6/Garrison | Expanded RIF knowledge: Autoassimilate 18662 | -6/Garrison | Discovered new exit (range 12) 18670 | -6/Garrison | Triggered checkpoint 18725 | -6/Garrison | Garrison Relay disabled 18762 | -6/Garrison | Expanded RIF knowledge: Code Merge 18904 | -6/Garrison | Build established: Botlord-Mutant 18941 | -6/Garrison | Triggered checkpoint 18950 | -6/Garrison | Garrison Relay disabled 19011 | -6/Garrison | Triggered checkpoint 19122 | -6/Garrison | Spotted Striker 19122 | -6/Garrison | Spotted Striker 19192 | -6/Garrison | Discovered new exit (range 11) 19199 | -6/Garrison | Triggered checkpoint 19233 | -6/Garrison | Triggered checkpoint 19250 | -6/Garrison | Garrison Relay disabled 19289 | -6/Garrison | Lost 3 allies 19299 | -6/Garrison | Garrison Relay disabled 19373 | -6/Garrison | Triggered checkpoint 19405 | -6/Garrison | Garrison Relay disabled 19412 | -6/Garrison | Lost 4 allies 19497 | -6/Garrison | Entered Factory 19497 | -5/Factory | Accompanied by 7 allies 19497 | -5/Factory | Evolved 2 slots: Propulsion x1, Utility x1 19797 | -5/Factory | First assault squad dispatched 20061 | -5/Factory | Lost 3 allies 20303 | -5/Factory | Identified exit to Garrison 20403 | -5/Factory | Entered Garrison 20411 | -5/Garrison | Triggered checkpoint 20471 | -5/Garrison | Triggered checkpoint 20488 | -5/Garrison | Garrison Relay disabled 20607 | -5/Garrison | Triggered checkpoint 20619 | -5/Garrison | Spotted B-75 Beast 20660 | -5/Garrison | Destroyed B-75 Beast 20730 | -5/Garrison | Rewired B-75 Beast 20732 | -5/Garrison | Rewired B-86 Titan 20812 | -5/Garrison | Triggered checkpoint 20824 | -5/Garrison | Triggered checkpoint 20896 | -5/Garrison | Lost 3 allies 20905 | -5/Garrison | Destroyed 9 combat bots 20965 | -5/Garrison | Triggered checkpoint 20983 | -5/Garrison | Discovered new exit (range 10) 21072 | -5/Garrison | Lost 4 allies 21203 | -5/Garrison | Triggered checkpoint 21241 | -5/Garrison | Garrison Relay disabled 21458 | -5/Garrison | Discovered new exit (range 10) 21511 | -5/Garrison | Triggered checkpoint 21558 | -5/Garrison | Garrison Relay disabled 21582 | -5/Garrison | Discovered new exit (range 25) 21582 | -5/Garrison | Discovered new exit (range 58) 21582 | -5/Garrison | Discovered new exit (range 18) 21743 | -5/Garrison | Expanded RIF knowledge: Program Shield 21854 | -5/Garrison | Rescued a captive Derelict 21891 | -5/Garrison | Garrison Relay disabled 21910 | -5/Garrison | Expanded RIF knowledge: Command Fork 22010 | -5/Garrison | Entered Factory 22010 | -5/Factory | Accompanied by 5 allies 22568 | -5/Factory | Fabricated Imp. Thunder Leg (x2) 22644 | -5/Factory | Discovered new exit (range 10) 22835 | -5/Factory | System corruption reached 10% 23063 | -5/Factory | Repaired Cld. Plasma Cannon? 23266 | -5/Factory | Identified exit to Garrison 23272 | -5/Factory | Entered Garrison 23272 | -5/Garrison | Accompanied by 9 allies 23332 | -5/Garrison | Triggered checkpoint 23339 | -5/Garrison | Expanded RIF knowledge: Code Merge 23498 | -5/Garrison | Spotted B-75 Beast 23530 | -5/Garrison | Triggered checkpoint 23534 | -5/Garrison | Destroyed B-75 Beast 23562 | -5/Garrison | Triggered checkpoint 23614 | -5/Garrison | Triggered checkpoint 23646 | -5/Garrison | Triggered checkpoint 23790 | -5/Garrison | Lost 3 allies 23937 | -5/Garrison | Garrison Relay disabled 23966 | -5/Garrison | Triggered checkpoint 24033 | -5/Garrison | Discovered new exit (range 10) 24178 | -5/Garrison | Triggered checkpoint 24212 | -5/Garrison | Triggered checkpoint 24287 | -5/Garrison | Garrison Relay disabled 24580 | -5/Garrison | Triggered checkpoint 24613 | -5/Garrison | Garrison Relay disabled 24712 | -5/Garrison | Triggered checkpoint 24799 | -5/Garrison | Triggered checkpoint 24923 | -5/Garrison | Discovered new exit (range 12) 24985 | -5/Garrison | Garrison Relay disabled 25148 | -5/Garrison | Triggered checkpoint 25196 | -5/Garrison | Garrison Relay disabled 25252 | -5/Garrison | Discovered new exit (range 8) 25274 | -5/Garrison | Triggered checkpoint 25294 | -5/Garrison | Discovered new exit (range 3) 25322 | -5/Garrison | Entered Factory 25322 | -5/Factory | Accompanied by 14 allies 25513 | -5/Factory | Fabricated M-13 Machinist (x1) 25560 | -5/Factory | Lost 3 allies 25622 | -5/Factory | First assault squad dispatched 25645 | -5/Factory | Repaired Hvy. Shield Leg 25869 | -5/Factory | Lost 7 allies 26139 | -5/Factory | Watched by a mysterious "MATRIX" hacker. 26154 | -5/Factory | Murdered 4 allies 26661 | -5/Factory | Lost 4 allies 26669 | -5/Factory | Identified exit to Garrison 26909 | -5/Factory | Entered Garrison 27049 | -5/Garrison | Triggered checkpoint 27075 | -5/Garrison | Garrison Relay disabled 27114 | -5/Garrison | Spotted B-75 Beast 27131 | -5/Garrison | Triggered checkpoint 27173 | -5/Garrison | Assimilated Beast 6b with formatsys_high 27179 | -5/Garrison | Destroyed Beast 6b 27183 | -5/Garrison | Triggered checkpoint 27216 | -5/Garrison | Lost 3 allies 27227 | -5/Garrison | Expanded RIF knowledge: Zone Cloak 27255 | -5/Garrison | Triggered checkpoint 27295 | -5/Garrison | Lost 3 parts (1p1n1u) 27311 | -5/Garrison | Triggered checkpoint 27655 | -5/Garrison | Discovered new exit (range 11) 27711 | -5/Garrison | Triggered checkpoint 27802 | -5/Garrison | Garrison Relay disabled 27851 | -5/Garrison | Garrison Relay disabled 28003 | -5/Garrison | Triggered checkpoint 28012 | -5/Garrison | Discovered new exit (range 68) 28012 | -5/Garrison | Discovered new exit (range 25) 28012 | -5/Garrison | Discovered new exit (range 21) 28023 | -5/Garrison | Garrison Relay disabled 28620 | -5/Garrison | Garrison Relay disabled 28719 | -5/Garrison | Entered Factory 28719 | -4/Factory | Accompanied by 12 allies 28719 | -4/Factory | Evolved 2 slots: Propulsion x1, Utility x1 28763 | -4/Factory | Discovered new exit (range 8) 28941 | -4/Factory | Unchained authorized (QV-33N) 29060 | -4/Factory | Identified exit to Garrison 29110 | -4/Factory | Garrison activated, responded to threat 29111 | -4/Factory | Entered Garrison 29111 | -4/Garrison | Accompanied by 8 allies 29132 | -4/Garrison | Expanded RIF knowledge: Autooverride 29160 | -4/Garrison | Found embedded Infiltrators 29221 | -4/Garrison | Triggered checkpoint 29264 | -4/Garrison | Lost 3 allies 29305 | -4/Garrison | Garrison Relay disabled 29539 | -4/Garrison | Spotted B-86 Titan 29547 | -4/Garrison | Triggered checkpoint 29571 | -4/Garrison | Triggered checkpoint 29581 | -4/Garrison | Triggered checkpoint 29642 | -4/Garrison | Lost 10 allies 29657 | -4/Garrison | Triggered checkpoint 29670 | -4/Garrison | Garrison Relay disabled 29831 | -4/Garrison | Discovered new exit (range 10) 29835 | -4/Garrison | Triggered checkpoint 29862 | -4/Garrison | Triggered checkpoint 29863 | -4/Garrison | Garrison Relay disabled 30092 | -4/Garrison | Spotted B-75 Beast 30096 | -4/Garrison | Rewired B-86 Titan 30111 | -4/Garrison | Found Quantum Capacitor 30124 | -4/Garrison | Allies destroyed B-75 Beast 30124 | -4/Garrison | Spotted B-90 Cyclops 30130 | -4/Garrison | Allies destroyed B-90 Cyclops 30242 | -4/Garrison | Discovered new exit (range 10) 30285 | -4/Garrison | Triggered checkpoint 30313 | -4/Garrison | Garrison Relay disabled 30344 | -4/Garrison | Discovered new exit (range 36) 30344 | -4/Garrison | Discovered new exit (range 71) 30344 | -4/Garrison | Discovered new exit (range 34) 30485 | -4/Garrison | Expanded RIF knowledge: Watcher Feeds 30615 | -4/Garrison | Entered Research 30615 | -3/Research | Accompanied by 12 allies 30615 | -3/Research | Evolved 2 slots: Power x1, Utility x1 30640 | -3/Research | Found Prototype Launcher 30640 | -3/Research | Identified Hellfire Missile Launcher 30730 | -3/Research | Spotted B-86 Titan 30742 | -3/Research | Destroyed B-86 Titan 30758 | -3/Research | Garrison activated, responded to threat 30791 | -3/Research | Lost 4 allies 31134 | -3/Research | Identified exit to Testing 31296 | -3/Research | Unchained authorized (QV-33N) 31332 | -3/Research | Discovered new exit (range 37) 31402 | -3/Research | Lost 12 allies 31623 | -3/Research | Entered Testing 31623 | -3/Testing | Accompanied by 1 ally 31625 | -3/Testing | Spotted PD-ZPDIVF76UC 31636 | -3/Testing | Destroyed PD-ZPDIVF76UC 31651 | -3/Testing | Found Prototype Processor 31651 | -3/Testing | Identified Spectral Analyzer 31706 | -3/Testing | Found Prototype Device 31713 | -3/Testing | Identified Exp. Hardlight Generator 31759 | -3/Testing | Found Prototype Energy Gun 31759 | -3/Testing | Identified Warp Gun 31931 | -3/Testing | Discovered new exit (range 31) 32000 | -3/Testing | Found Quantum Capacitor 32377 | -3/Testing | Garrison activated, responded to threat 32639 | -3/Testing | Lost 5 allies 32747 | -3/Testing | Found Prototype Energy Gun 32747 | -3/Testing | Identified Tachyon Dispersion Ray 32924 | -3/Testing | Spotted Striker 32924 | -3/Testing | Spotted Striker 33080 | -3/Testing | Central database locked down 33260 | -3/Testing | Identified exit to Garrison 33264 | -3/Testing | Entered Garrison 33264 | -3/Garrison | Accompanied by 4 allies 33276 | -3/Garrison | Spotted Executioner 33276 | -3/Garrison | Spotted Executioner 33283 | -3/Garrison | Destroyed Executioner 33290 | -3/Garrison | Allies destroyed Executioner 33327 | -3/Garrison | Rewired Striker 33329 | -3/Garrison | Rewired Striker 33338 | -3/Garrison | Found Exp. Targeting Computer 33395 | -3/Garrison | Found embedded Infiltrators 33398 | -3/Garrison | Triggered checkpoint 33420 | -3/Garrison | Garrison Relay disabled 33483 | -3/Garrison | Expanded RIF knowledge: Robot Detection 33555 | -3/Garrison | Triggered checkpoint 33634 | -3/Garrison | Lost 7 allies 33668 | -3/Garrison | Triggered checkpoint 33713 | -3/Garrison | Discovered new exit (range 11) 33749 | -3/Garrison | Triggered checkpoint 33839 | -3/Garrison | Garrison Relay disabled 33856 | -3/Garrison | Triggered checkpoint 33946 | -3/Garrison | Triggered checkpoint 33963 | -3/Garrison | Garrison Relay disabled 33993 | -3/Garrison | Discovered new exit (range 14) 34057 | -3/Garrison | Discovered new exit (range 45) 34057 | -3/Garrison | Discovered new exit (range 34) 34057 | -3/Garrison | Discovered new exit (range 64) 34078 | -3/Garrison | Triggered checkpoint 34109 | -3/Garrison | Spotted B-90 Cyclops 34151 | -3/Garrison | Allies destroyed B-90 Cyclops 34165 | -3/Garrison | Rewired B-75 Beast 34168 | -3/Garrison | Rewired B-90 Cyclops 34230 | -3/Garrison | Garrison Relay disabled 34310 | -3/Garrison | System corruption reached 10% 34381 | -3/Garrison | Entered Research 34381 | -2/Research | Accompanied by 3 allies 34381 | -2/Research | Evolved 2 slots: Propulsion x1, Utility x1 34476 | -2/Research | Garrison activated, responded to threat 34553 | -2/Research | Unchained authorized (QV-33N) 34631 | -2/Research | First assault squad dispatched 34729 | -2/Research | Lost 3 allies 35195 | -2/Research | Lost 3 allies 35366 | -2/Research | Discovered new exit (range 31) 35366 | -2/Research | Discovered new exit (range 22) 35513 | -2/Research | Lost 3 allies 35774 | -2/Research | System corruption reached 10% 35819 | -2/Research | Lost 3 parts (1p2u) 35862 | -2/Research | Entered Access 35862 | -1/Access | Evolved 2 slots: Power x1, Utility x1 36028 | -1/Access | Found Quantum Capacitor 36134 | -1/Access | Found Thermal Barrier 36713 | -1/Access | Destroyed 11 combat bots 36885 | -1/Access | Spotted B-99 Colossus 36885 | -1/Access | Spotted B-99 Colossus 36909 | -1/Access | Assimilated Colossus 10a with formatsys_high 36936 | -1/Access | Destroyed B-99 Colossus 36954 | -1/Access | Discovered new exit (range 3) 37037 | -1/Access | Entered Command 37037 | -1/Command | Accompanied by 1 ally 37705 | -1/Command | Spotted Striker 37705 | -1/Command | Spotted Alpha 7 37706 | -1/Command | Autoassimilated Striker with RIF 37708 | -1/Command | Spotted Striker 37710 | -1/Command | Spotted Alpha 7 37710 | -1/Command | Spotted Executioner 37712 | -1/Command | Spotted Executioner 37712 | -1/Command | Spotted Executioner 37713 | -1/Command | Autoassimilated Executioner with RIF 37713 | -1/Command | Spotted Executioner 37718 | -1/Command | Assimilated Alpha 7 with formatsys_high 37727 | -1/Command | Spotted B-99 Colossus 37727 | -1/Command | Spotted B-99 Colossus 37733 | -1/Command | Allies destroyed Executioner 37743 | -1/Command | Discovered new exit (range 16) 37758 | -1/Command | System corruption reached 10% 37769 | -1/Command | Lost 7 allies 37771 | *** | Escaped! Last Messages --------------- 37763_ Slug penetrates Reinforced Barrier. 37763_ Acquired 12 matter. 37764_ ODS1BGXYYRLKTUR5TG%T KL 37766_ Penetrated by Slug. 37766_ Enh. Armored Medium Treads destroyed. 37766_ Penetrated by Slug. 37766_ Slug penetrates Wall. 37766_ Penetrated by Slug. 37766_ Enh. Armored Medium Treads destroyed. 37766_ Penetrated by Slug. 37766_ Slug penetrates Wall. 37766_ Quantum Reactor destroyed. 37768_ P-80 Master resets B-99 Colossus, system corruption cleaned. 37770_ Rnf. Quantum Reactor destroyed. 37770_ Penetrated by Slug. 37770_ Quantum Reactor destroyed. 37770_ Slug penetrates Wall. 37770_ Lgt. Quantum Reactor destroyed. 37770_ Penetrated by Slug. 37770_ Centrium Light Armor Plating destroyed. Map ----- +----------------------------------------------------+ | + %%*[=%[ # = ## ]] " | | #"!==%[%! ###### ## | | ##########[!%[%= #????##""#/"#### % | | ?????????#|=!*% ##????# #?######"/ | | ?????????# ##"#""# % "#????# #???????# | | ?????????# # ##### % "#????# #???????# | | ?????????# ##????#####/]% "##???# #???????# | | ?????????# #?????????#%%% %%*#???# T" %"#???##### | | ????????? #?????????#""/ "#???# """" %##### # | | ????????? #???????###%! =%/ ##??# """"%+ " # | | ?????????###???????#"" ! #??# """ " #### # | | ????????????????????# % ! % #??# # #??## ## | | ????????????????????## * #??# # #???# #? | | ????????????????????#%=p] = #??# # ###?#%#? | | ????????????????????##^% =%[ #??# + # ### #? | | ????????????????????#[^= % #??# " " ## ## | | ????????????????????#!%=^ ! ###??######""%" ### | | ????????????????????#!^^!BB #???????## "=""###### | | ??????????????????####* BB %###?????# =%[ | | ??????????????????# BB #?????## "[" = | | ??????????????????# BB % #??????# " " = | | ??????????????????# %% ##?????# " " = | | ??????????????????# ;#?????? # ####+### | | ??????????????????# ^ ##?????? # #??# #?? | | ??????????????????# "" % #???????## ???? ?? | | ??????????????????# ^ "@ % #????????#"#????##? | | ??????????????????# #???????? ??????? | | ??????????????????# #???????? ??????? | | ??????????????????# ^ #????????]] ??????? | | ??????????????????# #????????]! ??????? | | ??????????????????# #???????? ??????? | | ??????????????????##############???????? ??????? | | ????????????????????????????????????????###??????? | | ?????????????????????????????????????????????????? | | ?????????????????????????????????????????????????? | | ?????????????????????????????????????????????????? | | ?????????????????????????????????????????????????? | | ?????????????????????????????????????????????????? | | ?????????????????????????????????????????????????? | | ?????????????????????????????????????????????????? | | ?????????????????????????????????????????????????? | | ?????????????????????????????????????????????????? | | ?????????????????????????????????????????????????? | | ?????????????????????????????????????????????????? | | ?????????????????????????????????????????????????? | | ?????????????????????????????????????????????????? | | ?????????????????????????????????????????????????? | | ?????????????????????????????????????????????????? | | ?????????????????????????????????????????????????? | | ?????????????????????????????????????????????????? | +----------------------------------------------------+ Best States ------------- Heat Dissipation 135 Coolant Potential 80 Energy Generation 85 Energy Capacity 940 Matter Stores 300 Matter Capacity 300 Sight Range 16 Terrain Scan Density 10 Jamming Range 14 Additional Mass Support 6 Base Temperature (-) 150 Armor Coverage 1650 Resistance: KI 30 Resistance: TH 50 Propulsion Shielding 33 Utility Shielding 66 Evasion (%) 70 Targeting Accuracy 12 Recoil Reduction 7 Offensive Hacking 10 Relay Coupler Types 5 Relay Coupler Value 235 Item Schematics ----------------- Phase Cannon | -8/Materials | Scanalyzed Shock Maul | -3/Testing | Archive Robot Schematics ------------------ M-13 Machinist | -10/Materials | Hacked M-28 Smith | -8/Materials | Hacked Fabricated ------------ Imp. Thunder Leg | x2 | -5/Factory | Preloaded M-13 Machinist | x1 | -5/Factory Repaired ---------- Med. Armor Plating | 7% | -9/Materials Lgt. Angular Momentum Engine | 23% | -8/Materials Phase Cannon | 99% | -8/Materials | Broken Hrd. Heavy Armor Plating | 51% | -7/Factory Cld. Plasma Cannon | 16% | -5/Factory Hvy. Shield Leg | 48% | -5/Factory Studied --------- Lgt. Treads | -9/Materials | Hacked Adv. Treads | -8/Materials | Hacked Remote Datajack | -7/Factory | Hacked Phase Cannon | -6/Factory | Hacked Lgt. Angular Momentum Engine | -6/Factory | Hacked Imp. Remote Datajack | -5/Factory | Hacked Hvy. Phase Cannon | -5/Factory | Hacked Lgt. Fission Core | -5/Factory | Hacked Imp. Medium Treads | -5/Factory | Hacked Com. HERF Cannon | -3/Testing | Hacked Adv. Remote Datajack | -3/Testing | Hacked Particle Reactor | -3/Testing | Hacked Centrium Wheel | -3/Testing | Hacked Adv. Heavy Treads | -3/Testing | Hacked Imp. Heavy Siege Treads | -3/Testing | Hacked Alien Tech Used ----------------- None Achievements -------------- None Challenges ------------ None Game ------ Seed BiocellAlertMicroactuators Manual? 0 Play Time 04:10:02 Cumulative 820.8 hours Start 2026.02.11 @ 16:56:56 End 2026.02.13 @ 19:25:06 Sessions 13 Manual Loads 0 Difficulty Rogue Special Mode None Game No. 409 Rogue 409 Adventurer 0 Explorer 0 Win Type 0 Total 69 Types 45/5/6/4/1/1/3/2/1/1 Lore% 92 Gallery% 81 Achievement% 68 Wizard Run 0 Options --------- Layout 0 ASCII 0 Keyboard 1 Movement Numpad Keybinds 0 Fullscreen 2 Font 18/SmallcapsGlow Map View 76x50 Zoom Use 0% Tactical HUD 1 Map Filters NONE Filters NONE Steam 1 RUN: 1cb1df24-c73e-4c6c-a4e3-a3f60ac5aa4b